{"text_format":"1","workbook":"xlsx","n_sheets":15,"sheets":["使い方","入力用シート_豚","入力用シート_ブロイラー","入力用シート_牛","計算方法_豚","計算方法_ブロイラー","計算方法_乳用牛","計算方法_肉用牛 ","←ここまで","※1","※2","※3","AG-001（計算方法）","AG-001 （モニタリング）","方法論・認証実績一覧表"],"not_rendered":{"charts":0,"images":2,"macros":1,"external_links":0,"defined_names":31,"comments":0,"pivot_tables":0},"unopened":[],"bounds":{"document_bytes":16777216,"sheet_cells":100000,"rows_first":2000,"rows_last":500,"rows_between":2000,"halvings":0,"cell_chars":16384,"cell_head_chars":4096},"cells_cut":0,"cells_raw":0,"read":"whole","date_system":"1900"}

{"sheet":"使い方","index":0,"n_rows":28,"n_cols":6,"rows_kept":28,"cut":false,"hidden":false,"merged":[]}
[null,"【　シミュレーターの使い方　】"]
[null,"【AG-001:牛・豚・ブロイラーへのアミノ酸バランス改善飼料の給餌】"]
[]
[null,"■入力用シート","※「豚」、「ブロイラー」、「牛」の3種類あります。"]
[null,"1)豚","2)ブロイラー","3)牛","☜ クリックするとページにジャンプします。"]
[null,"モニタリング項目を入力することで、排出削減量が確認できます。"]
[]
[]
[]
[]
[]
[]
[]
[]
[]
[]
[]
[]
[]
[]
[]
[]
[]
[]
[]
[null,"■計算方法","※「豚」、「ブロイラー」、「乳用牛」、「肉用牛」の４種類あります。"]
[null,"1)豚","2)ブロイラー","3-1)乳用牛","3-2)肉用牛","☜ クリックするとページにジャンプします。"]
[null,"ベースライン排出量やプロジェクト実施後の排出量と計算式が確認できます。"]

{"sheet":"入力用シート_豚","index":1,"n_rows":42,"n_cols":6,"rows_kept":42,"cut":false,"hidden":false,"merged":[[27,2,27,3],[31,2,31,3],[35,2,35,3]]}
[]
[null,null,"　　【AG-001:牛・豚・ブロイラーへのアミノ酸バランス改善飼料の給餌】"]
[null,null,"【黄色セルを上から順に、リストから選択または数値をご記入ください。】"]
[null,null,null,null,null,"自動入力"]
[null,null,"1)豚_入力用シート",null,null,"プロジェクト実施者が入力"]
[]
[null,null,"排出削減量(t-CO2)",{"$f":"計算方法_豚!$D$16","v":0},"☜下記の黄色セルを入力することで、\n最終的に排出削減量が計算されます。"]
[]
[null,null,"1) 活動量のモニタリング"]
[null,null,"モニタリング項目","数値","単位","備考"]
["APJ",null,"プロジェクト実施後のアミノ酸バランス改善飼料を使用して飼養した「肥育豚」の平均飼養頭数",null,"頭","数値を入力してください。"]
[null,null,"プロジェクト実施後のアミノ酸バランス改善飼料を使用して「肥育豚を飼養した日数",null,"日","数値を入力してください。"]
[null,null,"プロジェクト実施後の 1 日当たりのアミノ酸バランス改善飼料の平均重量（乾物摂取量）",null,"kg/日","数値を入力してください。"]
[null,null,"プロジェクト実施前の 1 日当たりの慣用飼料の平均重量（乾物摂取量）",null,"kg/日","数値を入力してください。"]
[null,null,"■ 排せつ物の管理区分 ",null,"ー","選択肢から選択してください。"]
[null,null,"    ー ふん",null,null,{"$f":"IF($D$24=\"ふん尿分離\",\"選択肢から選択してください。\",\"\")","v":"選択肢から選択してください。"}]
[null,null,"    ー 尿",null,null,{"$f":"IF($D$24=\"ふん尿分離\",\"選択肢から選択してください。\",\"\")","v":"選択肢から選択してください。"}]
[null,null,"    ー ふん尿混合",null,null,{"$f":"IF($D$24=\"ふん尿混合\",\"選択肢から選択してください。\",\"\")","v":"選択肢から選択してください。"}]
[null,null,"アミノ酸バランス改善飼料の CP 含有率",14,"％","数値を入力してください。"]
[null,null,"プロジェクト実施前の慣用飼料の CP 含有率",16,"％","数値を入力してください。"]
[]
[null,null,"2) 係数のモニタリング"]
[null,null,"モニタリング項目","数値","単位","備考"]
[null,null,"■ 排せつ管理区分 n の排せつ物の管理区分 ",{"$f":"$D$15","v":0}]
[null,null,"    ー ふん","すべての処理",null,{"$f":"IF($D$24=\"ふん尿分離\",\"選択肢から選択してください。\",\"\")","v":"選択肢から選択してください。"}]
[null,null,"    ー 尿",null,null,{"$f":"IF($D$24=\"ふん尿分離\",\"選択肢から選択してください。\",\"\")","v":"選択肢から選択してください。"}]
[null,null,"    ー ふん尿混合",null,null,{"$f":"IF($D$24=\"ふん尿混合\",\"選択肢から選択してください。\",\"\")","v":"選択肢から選択してください。"}]
["ί",null,"■ N2O 排出係数"]
[null,null,"    ー ふん",{"$f":"INDEX(※2!$L$3:$L$15, MATCH($D$16,※2!$I$3:$I$15, 0))","v":2.5000000000000001E-2},"tN2O-N/tN"]
[null,null,"    ー 尿",{"$f":"INDEX(※2!$Q$3:$Q$14, MATCH($D$17,※2!$N$3:$N$14, 0))","v":1.23E-2},"tN2O-N/tN"]
[null,null,"    ー ふん尿混合",{"$f":"INDEX(※2!$V$3:$V$15,MATCH($D$18,※2!$S$3:$S$15,0))","v":2.87E-2},"tN2O-N/tN"]
[null,null,"■ 排せつ管理区分 n の畜舎における排せつ物から NH3 や NOx として揮発する割合"]
[null,null,"    ー ふん",{"$f":"※3!$D$19","v":0.14699999999999999},"tNH3-N+NOx-N/tN"]
[null,null,"    ー 尿",{"$f":"INDEX(※3!$D$20:$D$21, MATCH($D$26,※3!$C$20:$C$21, 0))","v":0.14699999999999999},"tNH3-N+NOx-N/tN"]
[null,null,"    ー ふん尿混合",{"$f":"INDEX(※3!$D$22:$D$24, MATCH($D$27,※3!$C$22:$C$24, 0))","v":0.14699999999999999},"tNH3-N+NOx-N/tN"]
[null,null,"■ 排せつ管理区分 n の処理時に排せつ物から NH3 や NOx として揮発する割合"]
[null,null,"    ー ふん",{"$f":"※3!$E$19","v":0.19700000000000001},"tNH3-N+NOx-N/tN"]
[null,null,"    ー 尿",{"$f":"INDEX(※3!$E$20:$E$21, MATCH($D$26,※3!$C$20:$C$21, 0))","v":0},"tNH3-N+NOx-N/tN"]
[null,null,"    ー ふん尿混合",{"$f":"INDEX(※3!$E$22:$E$24, MATCH($D$27,※3!$C$22:$C$24, 0))","v":0.25},"tNH3-N+NOx-N/tN"]
[null,null,"ベースラインの慣用飼料を使用して飼養した場合の「肥育豚」1 頭、1 日当たりの排せつ物に含まれる窒素含有量",{"$f":"34.2*10^-6","v":3.4200000000000005E-5},"tN/頭/日"]
[null,null,"大気沈降によるN2O排出の排出係数",1.4E-2,"tN2O-N/t-NH3-N+Nox-N"]
["ί",null,"N2O の地球温暖化係数",265,"tCO2/tN2O"]

{"sheet":"入力用シート_ブロイラー","index":2,"n_rows":27,"n_cols":6,"rows_kept":27,"cut":false,"hidden":false,"merged":[]}
[]
[null,null,"　　【AG-001:牛・豚・ブロイラーへのアミノ酸バランス改善飼料の給餌】"]
[null,null,"【黄色セルを上から順に、リストから選択または数値をご記入ください。】"]
[null,null,null,null,null,"自動入力"]
[null,null,"2)ブロイラー_入力用シート",null,null,"プロジェクト実施者が入力"]
[]
[null,null,"排出削減量(t-CO2)",{"$f":"計算方法_ブロイラー!$D$16","v":{"$error":"#N/A"}},null,"☜下記の黄色セルを入力することで、最終的に排出削減量が計算されます。"]
[]
[null,null,"1) 活動量のモニタリング"]
[null,null,"モニタリング項目","数値","単位","備考"]
["APJ",null,"プロジェクト実施後のアミノ酸バランス改善飼料を使用して飼養した「ブロイラー」の平均飼養羽数",null,"羽","数値を入力してください。"]
[null,null,"プロジェクト実施後のアミノ酸バランス改善飼料を使用して「ブロイラー」を飼養した日数",null,"日","数値を入力してください。"]
[null,null,"プロジェクト実施後の 1 日当たりのアミノ酸バランス改善飼料の平均重量（乾物摂取量）",null,"kg/日","数値を入力してください。"]
[null,null,"プロジェクト実施前の 1 日当たりの慣用飼料の平均重量（乾物摂取量）",null,"kg/日","数値を入力してください。"]
[null,null,"排せつ物の管理区分 ",null,"ー","選択肢から選択してください。"]
[null,null,"アミノ酸バランス改善飼料の CP 含有率",14,"％","数値を入力してください。"]
[null,null,"プロジェクト実施前の慣用飼料の CP 含有率",16,"％","数値を入力してください。"]
[]
[null,null,"2) 係数のモニタリング"]
[null,null,"モニタリング項目","数値","単位","備考"]
[null,null,"排せつ管理区分 n の排せつ物の管理区分 ","その他",null,"選択肢から選択してください。"]
["ί",null,"N2O 排出係数",{"$f":"INDEX(※2!$M$3:$M$15, MATCH($D$15,※2!$I$3:$I$15, 0))","v":{"$error":"#N/A"}},"tN2O-N/tN"]
[null,null,"排せつ管理区分 n の畜舎における排せつ物から NH3 や NOx として揮発する割合",{"$f":"INDEX(※3!$D$25:$D$26, MATCH($D$21,※3!$I$25:$I$26, 0))","v":0.13957142857142857},"tNH3-N+NOx-N/tN"]
[null,null,"排せつ管理区分 n の処理時に排せつ物から NH3 や NOx として揮発する割合",{"$f":"INDEX(※3!$E$25:$E$26, MATCH($D$21,※3!$I$25:$I$26, 0))","v":0.2105714285714286},"tNH3-N+NOx-N/tN"]
[null,null,"ベースラインの慣用飼料を使用して飼養した場合の「ブロイラー」1 羽、1 日当たりの排せつ物に含まれる窒素含有量",{"$f":"2.62*10^-6","v":2.6199999999999999E-6},"tN/羽/日"]
[null,null,"大気沈降によるN2O排出の排出係数",1.4E-2,"tN2O-N/t-NH3-N+Nox-N"]
["ί",null,"N2O の地球温暖化係数",265,"tCO2/tN2O"]

{"sheet":"入力用シート_牛","index":3,"n_rows":46,"n_cols":6,"rows_kept":46,"cut":false,"hidden":false,"merged":[[36,2,36,3],[40,2,40,3]]}
[]
[null,null,"　　【AG-001:牛・豚・ブロイラーへのアミノ酸バランス改善飼料の給餌】"]
[null,null,"【黄色セルを上から順に、リストから選択または数値をご記入ください。】"]
[null,null,null,null,null,"自動入力"]
[null,null,"3)牛_入力用シート",null,null,"プロジェクト実施者が入力"]
[]
[null,null,"排出削減量(t-CO2)",{"$f":"IF(D28=\"乳用牛\",計算方法_乳用牛!D16,IF(D28=\"肉用牛\",'計算方法_肉用牛 '!D16,\"\"))","v":""},null,"☜下記の黄色セルを入力することで、最終的に排出削減量が計算されます。"]
[]
[null,null,"1) 活動量のモニタリング"]
[null,null,"モニタリング項目","数値","単位","備考"]
["APJ",null,"■ プロジェクト実施後のアミノ酸バランス改善飼料を使用して飼養した「乳用牛」の平均飼養頭数",null,"頭"]
[null,null,"　ー 搾乳牛",null,"頭","数値を入力してください。"]
[null,null,"　ー 乾乳牛・育乳牛",null,"頭","数値を入力してください。"]
[null,null,"プロジェクト実施後のアミノ酸バランス改善飼料を使用して「乳用牛」を飼養した日数",null,"日","数値を入力してください。"]
[null,null,"プロジェクト実施後のアミノ酸バランス改善飼料を使用して飼養した「肉用牛」の平均飼養頭数",null,"頭","数値を入力してください。"]
[null,null,"プロジェクト実施後のアミノ酸バランス改善飼料を使用して「肉用牛」を飼養した日数",null,"日","数値を入力してください。"]
[null,null,"プロジェクト実施後の 1 日当たりのアミノ酸バランス改善飼料の平均重量（乾物摂取量）",null,"kg/日","数値を入力してください。"]
[null,null,"プロジェクト実施前の 1 日当たりの慣用飼料の平均重量（乾物摂取量）",null,"kg/日","数値を入力してください。"]
[null,null,"■ 排せつ物の管理区分 ",null,"ー","選択肢から選択してください。"]
[null,null,"    ー ふん",null,"ー"]
[null,null,"    ー 尿",null,"ー"]
[null,null,"    ー ふん尿混合",null,"ー"]
[null,null,"アミノ酸バランス改善飼料の CP 含有率",13.4,"％","数値を入力してください。"]
[null,null,"プロジェクト実施前の慣用飼料の CP 含有率",16.399999999999999,"％","数値を入力してください。"]
[]
[null,null,"2) 係数のモニタリング"]
[null,null,"モニタリング項目","数値","単位"]
[null,null,"■ 排せつ物の管理区分_牛の種類 ",null,"ー","選択肢から選択してください。"]
[null,null,"    ▪排せつ物の管理区分",{"$f":"$D$19","v":0},"ー"]
["ί",null,"    　ー ふん",null,"ー",{"$f":"IF($D$29=\"ふん尿分離\",\"選択肢から選択してください。\",\"\")","v":""}]
[null,null,"    　ー 尿",null,"ー",{"$f":"IF($D$29=\"ふん尿分離\",\"選択肢から選択してください。\",\"\")","v":""}]
[null,null,"    　ー ふん尿混合",null,"ー",{"$f":"IF($D$29=\"ふん尿混合\",\"選択肢から選択してください。\",\"\")","v":""}]
[null,null,"■ 排せつ管理区分 n のN2O 排出係数"]
[null,null,"    ー ふん",{"$f":"INDEX(※2!$J$3:$K$15, MATCH($D$20,※2!$I$3:$I$15, 0), MATCH($D$28,※2!$J$2:$K$2, 0))","v":{"$error":"#N/A"}},"tN2O-N/tN"]
[null,null,"    ー 尿",{"$f":"INDEX(※2!$O$3:$P$14, MATCH($D$21,※2!$N$3:$N$14, 0), MATCH($D$28,※2!$O$2:$P$2, 0))","v":{"$error":"#N/A"}},"tN2O-N/tN"]
[null,null,"    ー ふん尿混合",{"$f":"INDEX(※2!$T$3:$U$15, MATCH($D$22,※2!$S$3:$S$15, 0), MATCH($D$28,※2!$T$2:$U$2, 0))","v":{"$error":"#N/A"}},"tN2O-N/tN"]
[null,null,"■ 排せつ管理区分 n の畜舎における排せつ物から NH3 や NOx として揮発する割合"]
[null,null,"    ー ふん",{"$f":"INDEX(※3!$E$3:$E$18, MATCH($D$28 & $C$38 & $D$30, ※3!$L$3:$L$26, 0))","v":{"$error":"#N/A"}},"tNH3-N+NOx-N/tN"]
[null,null,"    ー 尿",{"$f":"INDEX(※3!$E$3:$E$18, MATCH($D$28 & $C$39 & $D$31, ※3!$L$3:$L$26, 0))","v":{"$error":"#N/A"}},"tNH3-N+NOx-N/tN"]
[null,null,"    ー ふん尿混合",{"$f":"INDEX(※3!$E$3:$E$18, MATCH($D$28 & $C$40 & $D$32, ※3!$L$3:$L$26, 0))","v":{"$error":"#N/A"}},"tNH3-N+NOx-N/tN"]
[null,null,"■ 排せつ管理区分 n の処理時に排せつ物から NH3 や NOx として揮発する割合"]
[null,null,"    ー ふん",{"$f":"INDEX(※3!$D$3:$D$18, MATCH($D$28 & $C$38 & $D$30, ※3!$L$3:$L$26, 0))","v":{"$error":"#N/A"}},"tNH3-N+NOx-N/tN"]
[null,null,"    ー 尿",{"$f":"INDEX(※3!$D$3:$D$18, MATCH($D$28 & $C$39 & $D$31, ※3!$L$3:$L$26, 0))","v":{"$error":"#N/A"}},"tNH3-N+NOx-N/tN"]
[null,null,"    ー ふん尿混合",{"$f":"INDEX(※3!$D$3:$D$18, MATCH($D$28 & $C$40 & $D$32, ※3!$L$3:$L$26, 0))","v":{"$error":"#N/A"}},"tNH3-N+NOx-N/tN"]
[null,null,"大気沈降によるN2O排出の排出係数",1.4E-2,"tN2O-N/t-NH3-N+Nox-N"]
["ί",null,"N2O の地球温暖化係数",265,"tCO2/tN2O"]

{"sheet":"計算方法_豚","index":4,"n_rows":65,"n_cols":8,"rows_kept":65,"cut":false,"hidden":false,"merged":[[40,2,40,3],[31,2,31,3],[27,2,27,3],[44,2,44,3]]}
[null,"１）計算方法：豚",null,"【自動で計算されます。】"]
[null,null,null,null,"自動入力"]
[]
[]
[null,"１．適用条件"]
[null,"記号","定義","数値","単位","計算式"]
[null,"Wbefore,CP","プロジェクト実施前の 1 日当たりの CP 値",{"$f":"$D$9*$D$11*10","v":0},"g/日","Wbefore,CP =Wbefore, feed ×CRbefore,CP",null,"←g.kg、百分率の単位換算含む"]
[null,"WPJ,CP","プロジェクト実施後の 1 日当たりの CP 値",{"$f":"$D$10*$D$12*10","v":0},"g/日","WPJ,CP = WPJ,feed ×CRPJ,CP",null,"←g.kg、百分率の単位換算含む"]
[null,"Wbefore,feed","プロジェクト実施前の 1 日当たりの慣用飼料の平均重量（乾物摂取量）",{"$f":"入力用シート_豚!$D$14","v":0},"kg/日","―"]
[null,"WPJ,feed","プロジェクト実施後の 1 日当たりのアミノ酸バランス改善飼料の平均重量（乾物摂取量）",{"$f":"入力用シート_豚!$D$13","v":0},"kg/日","―"]
[null,"CRbefore,CP","プロジェクト実施前の慣用飼料の CP 含有率",{"$f":"入力用シート_豚!$D$20","v":16},"%","―"]
[null,"CRPJ,CP","プロジェクト実施後のアミノ酸バランス改善飼料の CP 含有率",{"$f":"入力用シート_豚!$D$19","v":14},"%","―"]
[]
[null,"２．排出削減量の算定"]
[null,"記号","定義","数値","単位","計算式"]
[null,"ER","排出削減量",{"$f":"$D$17-$D$18","v":0},"tCO2e /年","ER= EM BL − EM PJ"]
[null,"EMBL","ベースライン排出量",{"$f":"$D$58","v":0},"tCO2e /年","―"]
[null,"EMPJ","プロジェクト実施後排出量",{"$f":"$D$23","v":0},"tCO2e /年","―"]
[]
[]
[null,"３．プロジェクト実施後排出量の算定"]
[null,"記号","定義","数値","単位","計算式"]
[null,"EMPJ","■ プロジェクト実施後排出量",{"$f":"IF($D$27=\"ふん尿分離\",D24+D25,D26)","v":0},"tCO2e/年","EMPJ =∑{(EFN2O,n +EFN2o,i,n)× MAPJ,pig × NPJ,n,pig × DPJ,n,pig )}×44/28 ×GWPN2O"]
[null,null,"　ー ふん",{"$f":"(($D29+$D33)*$D$36*$D$37*$D$38)*(44/28)*$D$40","v":0},"tCO2e/年"]
[null,null,"　ー 尿",{"$f":"(($D30+$D34)*$D$36*$D$37*$D$38)*(44/28)*$D$40","v":0},"tCO2e/年"]
[null,null,"　ー ふん尿混合",0,"tCO2e/年"]
[null,"n","排せつ物の管理区分",{"$f":"入力用シート_豚!$D$24","v":0},"ー","ー"]
[null,"EFN2O,n","■ 排せつ管理区分 n の N2O 排出係数",null,"tN2O-N/tN","ー"]
[null,null,"    ー ふん",{"$f":"入力用シート_豚!D29","v":2.5000000000000001E-2},"tN2O-N/tN"]
[null,null,"    ー 尿",{"$f":"入力用シート_豚!D30","v":1.23E-2},"tN2O-N/tN"]
[null,null,"    ー ふん尿混合",{"$f":"入力用シート_豚!D31","v":2.87E-2},"tN2O-N/tN"]
[null,"EFN2O,i,n","■ 排せつ管理区分 n の間接 N2O 排出係数",null,"tN2O-N/tN","EFN2O,i,n=(FracGasm1,n+FracGasm2,n-FracGasm1,n×FracGasm2,n)×EF"]
[null,null,"　ー ふん",{"$f":"(D42+D46-D42*D46)*$D$49","v":4.4105739999999996E-3},"tN2O-N/tN"]
[null,null,"　ー 尿",{"$f":"(D43+D47-D43*D47)*$D$49","v":2.0579999999999999E-3},"tN2O-N/tN"]
[null,null,"　ー ふん尿混合",5.0435000000000002E-3,"tN2O-N/tN"]
[null,"MAPJ,pig","プロジェクト実施後のアミノ酸バランス改善飼料を使用して飼養した場合の「肥育豚」1 頭、1 日当たりの排せつ物に含まれる窒素含有量",{"$f":"$D$50*(1-$D$51/100)","v":2.7831960000000001E-5},"tN/頭/日","MAPJ,pig = MABL,pig × (1 - RN × 1/100)"]
[null,"NPJ,n,pig","プロジェクト実施後のアミノ酸バランス改善飼料を使用して飼養した「肥育豚」の平均飼養頭数",{"$f":"入力用シート_豚!$D$11","v":0},"頭","ー"]
[null,"DPJ,n,pig","プロジェクト実施後のアミノ酸バランス改善飼料を使用して「肥育豚」を飼養した日数",{"$f":"入力用シート_豚!$D$12","v":0},"日","ー"]
[null,"44/28","N2O 中に含まれる窒素重量（tN2O-N）を N2O 重量（tN2O）に変換するための係数","ー","ー","ー"]
[null,"GWPN2O","N2O の地球温暖化係数",{"$f":"入力用シート_豚!$D$42","v":265},"tCO2/tN2O","ー"]
[null,"FracGasm1,n","■ 排せつ管理区分 n の畜舎における排せつ物から NH3 や NOx として揮発する割合",null,null,"ー"]
[null,null,"　ー ふん",{"$f":"入力用シート_豚!D33","v":0.14699999999999999},"(tNH3-N+NOx-N)/tN"]
[null,null,"　ー 尿",{"$f":"入力用シート_豚!D34","v":0.14699999999999999},"(tNH3-N+NOx-N)/tN"]
[null,null,"　ー ふん尿混合",{"$f":"入力用シート_豚!D35","v":0.14699999999999999},"(tNH3-N+NOx-N)/tN"]
[null,"FracGasm2,n","■ 排せつ管理区分 n の処理時に排せつ物から NH3 や NOx として揮発する割合"]
[null,null,"　ー ふん",{"$f":"入力用シート_豚!D37","v":0.19700000000000001},"(tNH3-N+NOx-N)/tN"]
[null,null,"　ー 尿",{"$f":"入力用シート_豚!D38","v":0},"(tNH3-N+NOx-N)/tN"]
[null,null,"　ー ふん尿混合",{"$f":"入力用シート_豚!D39","v":0.25},"(tNH3-N+NOx-N)/tN"]
[null,"EF","排出係数",{"$f":"入力用シート_豚!$D$41","v":1.4E-2},"tN2O-N/(t-NH3-N+Nox-N)","ー"]
[null,"MABL,pig ","ベースラインの慣用飼料を使用して飼養した場合の「肥育豚」1 頭、1 日当たりの排せつ物に含まれる窒素含有量",{"$f":"入力用シート_豚!$D$40","v":3.4200000000000005E-5},"tN/頭/日","ー"]
[null,"RN","排せつ物中の窒素低減率",{"$f":"3.7+7.46*($D$52-$D$53)","v":18.62},"%","RN = 3.70 + 7.46(CRBL,CP - CRPJ,CP)"]
[null,"CRBL,CP","ベースラインの慣用飼料の CP 含有率",{"$f":"入力用シート_豚!$D$20","v":16},"%","ー"]
[null,"CRPJ,CP","プロジェクト実施後のアミノ酸バランス改善飼料の CP 含有率",{"$f":"入力用シート_豚!$D$19","v":14},"%","ー"]
[]
[]
[null,"4．ベースライン排出量の算定"]
[null,"記号","定義","数値","単位","計算式"]
[null,"EMBL","■ ベースライン排出量",{"$f":"IF($D$27=\"ふん尿分離\",D59+D60,D61)","v":0},"tCO2e/年","EMBL =∑{(EFN2O,n +EFN2o,i,n)× MABL,pig × NBL,n,pig × DBL,n,pig )}×44/28 ×GWPN2O"]
[null,null,"　ー ふん",{"$f":"(($D29+$D33)*$D$50*$D$63*$D$65)*(44/28)*$D$40","v":0},"tCO2e/年"]
[null,null,"　ー 尿",0,"tCO2e/年"]
[null,null,"　ー ふん尿混合",0,"tCO2e/年"]
[null,"NPJ,n,pig","プロジェクト実施後のアミノ酸バランス改善飼料を使用して飼養した「肥育豚」の平均飼養頭数",{"$f":"入力用シート_豚!$D$11","v":0},"頭","NPJ,n,pig = NBL,n,pig"]
[null,"NBL,n,pig","ベースラインの慣用飼料を使用して飼養した「肥育豚」の平均飼養頭数",{"$f":"$D$62","v":0},"頭","ー"]
[null,"DPJ,n,pig","プロジェクト実施後のアミノ酸バランス改善飼料を使用して「肥育豚」を飼養した日数",{"$f":"入力用シート_豚!D12","v":0},"日","DPJ,n,pig = DBL,n,pig"]
[null,"DBL,n,pig","ベースラインの慣用飼料を使用して「肥育豚」を飼養した日数",{"$f":"D64","v":0},"日","ー"]

{"sheet":"計算方法_ブロイラー","index":5,"n_rows":47,"n_cols":6,"rows_kept":47,"cut":false,"hidden":false,"merged":[]}
[null,"２）計算方法：ブロイラー　",null,"【自動で計算されます。】"]
[null,null,null,null,"自動入力"]
[null,"2)ブロイラー_計算方法"]
[]
[null,"１．適用条件"]
[null,"記号","定義","数値","単位","計算式"]
[null,"Wbefore,CP","プロジェクト実施前の 1 日当たりの CP 値",{"$f":"$D$9*$D$11*10","v":0},"g/日","Wbefore,CP =Wbefore, feed ×CRbefore,CP"]
[null,"WPJ,CP","プロジェクト実施後の 1 日当たりの CP 値",{"$f":"$D$10*$D$12*10","v":0},"g/日","WPJ,CP = WPJ,feed ×CRPJ,CP"]
[null,"Wbefore,feed","プロジェクト実施前の 1 日当たりの慣用飼料の平均重量（乾物摂取量）",{"$f":"入力用シート_ブロイラー!$D$14","v":0},"kg/日","―"]
[null,"WPJ,feed","プロジェクト実施後の 1 日当たりのアミノ酸バランス改善飼料の平均重量（乾物摂取量）",{"$f":"入力用シート_ブロイラー!$D$13","v":0},"kg/日","―"]
[null,"CRbefore,CP","プロジェクト実施前の慣用飼料の CP 含有率",{"$f":"入力用シート_ブロイラー!$D$17","v":16},"%","―"]
[null,"CRPJ,CP","プロジェクト実施後のアミノ酸バランス改善飼料の CP 含有率",{"$f":"入力用シート_ブロイラー!$D$16","v":14},"%","―"]
[]
[null,"２．排出削減量の算定"]
[null,"記号","定義","数値","単位","計算式"]
[null,"ER","排出削減量",{"$f":"$D$17-$D$18","v":{"$error":"#N/A"}},"tCO2e /年","ER= EM BL − EM PJ"]
[null,"EMBL","ベースライン排出量",{"$f":"$D$43","v":{"$error":"#N/A"}},"tCO2e /年","―"]
[null,"EMPJ","プロジェクト実施後排出量",{"$f":"$D$23","v":{"$error":"#N/A"}},"tCO2e /年","―"]
[]
[]
[null,"３．プロジェクト実施後排出量の算定"]
[null,"記号","定義","数値","単位","計算式"]
[null,"EMPJ","プロジェクト実施後排出量 ",{"$f":"(($D$25+$D$26)*$D$27*$D$28*$D$29)*(44/28)*$D$31","v":{"$error":"#N/A"}},"tCO2e/年","EMPJ =∑{(EFN2O,n +EFN2o,i,n)× MAPJ,broiler × NPJ,n,broiler × DPJ,n,broiler )}×44/28 ×GWPN2O"]
[null,"n","排せつ物の管理区分","ー","ー","ー"]
[null,"EFN2O,n","排せつ管理区分 n の N2O 排出係数",{"$f":"入力用シート_ブロイラー!D22","v":{"$error":"#N/A"}},"tN2O-N/tN","ー"]
[null,"EFN2O,i,n","排せつ管理区分 n の間接 N2O 排出係数",{"$f":"($D$32+$D$33-$D$32*$D$33)*$D$34","v":{"$error":"#N/A"}},"tN2O-N/tN","EFN2O,i,n=(FracGasm1,n+FracGasm2,n-FracGasm1,n×FracGasm2,n)×EF"]
[null,"MAPJ,broiler","プロジェクト実施後のアミノ酸バランス改善飼料を使用して飼養した場合の「ブロイラー」1 羽、1 日当たりの排せつ物に含まれる窒素含有量",{"$f":"$D$35*(1-$D$36/100)","v":2.1321559999999997E-6},"tN/頭/日","MAPJ,broiler = MABL,broiler × (1 - RN × 1/100)"]
[null,"NPJ,n,broiler","プロジェクト実施後のアミノ酸バランス改善飼料を使用して飼養した「ブロイラー」の平均飼養羽数",{"$f":"入力用シート_ブロイラー!$D$11","v":0},"頭","ー"]
[null,"DPJ,n,broiler","プロジェクト実施後のアミノ酸バランス改善飼料を使用して「ブロイラー」を飼養した日数",{"$f":"入力用シート_ブロイラー!$D$12","v":0},"日","ー"]
[null,"44/28","N2O 中に含まれる窒素重量（tN2O-N）を N2O 重量（tN2O）に変換するための係数","ー","ー","ー"]
[null,"GWPN2O","N2O の地球温暖化係数",{"$f":"入力用シート_ブロイラー!$D$27","v":265},"tCO2/tN2O","ー"]
[null,"FracGasm1,n","排せつ管理区分 n の畜舎における排せつ物から NH3 や NOx として揮発する割合",{"$f":"入力用シート_ブロイラー!$D$23","v":0.13957142857142857},"(tNH3-N+NOx-N)/tN","ー"]
[null,"FracGasm2,n","排せつ管理区分 n の処理時に排せつ物から NH3 や NOx として揮発する割合",{"$f":"入力用シート_ブロイラー!$D$24","v":0.2105714285714286},"(tNH3-N+NOx-N)/tN","ー"]
[null,"EF","排出係数",{"$f":"入力用シート_ブロイラー!$D$22","v":{"$error":"#N/A"}},"tN2O-N/(t-NH3-N+Nox-N)","ー"]
[null,"MABL,broiler","ベースラインの慣用飼料を使用して飼養した場合の「ブロイラー」1羽、1 日当たりの排せつ物に含まれる窒素含有量",{"$f":"入力用シート_ブロイラー!$D$25","v":2.6199999999999999E-6},"tN/頭/日","ー"]
[null,"RN","排せつ物中の窒素低減率",{"$f":"3.7+7.46*($D$37-$D$38)","v":18.62},"%","RN = 3.70 + 7.46(CRBL,CP - CRPJ,CP)"]
[null,"CRBL,CP","ベースラインの慣用飼料の CP 含有率 N2O",{"$f":"入力用シート_ブロイラー!$D$17","v":16},"%","ー"]
[null,"CRPJ,CP","プロジェクト実施後のアミノ酸バランス改善飼料の CP 含有率",{"$f":"入力用シート_ブロイラー!$D$16","v":14},"%","ー"]
[]
[]
[null,"4．ベースライン排出量の算定"]
[null,"記号","定義","数値","単位","計算式"]
[null,"EMBL","ベースライン排出量",{"$f":"(($D$25+$D$26)*$D$35*$D$45*$D$47)*(44/28)*$D$31","v":{"$error":"#N/A"}},"tCO2e/年","EMBL =∑{(EFN2O,n +EFN2o,i,n)× MABL,broiler × NBL,n,broiler × DBL,n,broiler )}×44/28 ×GWPN2O"]
[null,"NPJ,n,broiler","プロジェクト実施後のアミノ酸バランス改善飼料を使用して飼養した「ブロイラー」の平均飼養羽数",{"$f":"入力用シート_ブロイラー!$D$11","v":0},"羽","NPJ,n,broiler = NBL,n,broiler"]
[null,"NBL,n,broiler","ベースラインの慣用飼料を使用して飼養した「ブロイラー」の平均飼養羽数",{"$f":"$D$44","v":0},"羽","ー"]
[null,"DPJ,n,broiler","プロジェクト実施後のアミノ酸バランス改善飼料を使用して「ブロイラー」を飼養した日数",{"$f":"入力用シート_ブロイラー!D12","v":0},"日","DPJ,n,broiler = DBL,n,broiler"]
[null,"DBL,n,broiler","ベースラインの慣用飼料を使用して「ブロイラー」を飼養した日数",{"$f":"$D$46","v":0},"日","ー"]

{"sheet":"計算方法_乳用牛","index":6,"n_rows":73,"n_cols":6,"rows_kept":73,"cut":false,"hidden":false,"merged":[[69,1,70,1],[69,4,70,4],[71,1,72,1],[71,4,72,4],[30,2,30,3],[34,2,34,3]]}
[null,"３－１）計算方法_乳用牛",null,"【自動で計算されます。】"]
[null,null,null,null,"自動入力"]
[]
[]
[null,"１．適用条件"]
[null,"記号","定義","数値","単位","計算式"]
[null,"Wbefore,CP","プロジェクト実施前の 1 日当たりの CP 値",{"$f":"$D$9*$D$11*10","v":0},"g/日","Wbefore,CP =Wbefore, feed ×CRbefore,CP"]
[null,"WPJ,CP","プロジェクト実施後の 1 日当たりの CP 値",{"$f":"$D$10*$D$12*10","v":0},"g/日","WPJ,CP = WPJ,feed ×CRPJ,CP"]
[null,"Wbefore,feed","プロジェクト実施前の 1 日当たりの慣用飼料の平均重量（乾物摂取量）",{"$f":"入力用シート_牛!$D$18","v":0},"kg/日","―"]
[null,"WPJ,feed","プロジェクト実施後の 1 日当たりのアミノ酸バランス改善飼料の平均重量（乾物摂取量）",{"$f":"入力用シート_牛!$D$17","v":0},"kg/日","―"]
[null,"CRbefore,CP","プロジェクト実施前の慣用飼料の CP 含有率",{"$f":"入力用シート_牛!$D$24","v":16.399999999999999},"%","―"]
[null,"CRPJ,CP","プロジェクト実施後のアミノ酸バランス改善飼料の CP 含有率",{"$f":"入力用シート_牛!$D$23","v":13.4},"%","―"]
[]
[null,"２．排出削減量の算定"]
[null,"記号","定義","数値","単位","計算式"]
[null,"ER","排出削減量",{"$f":"$D$17-$D$18","v":{"$error":"#N/A"}},"tCO2e /年","ER= EM BL − EM PJ"]
[null,"EMBL","ベースライン排出量",{"$f":"$D$60","v":{"$error":"#N/A"}},"tCO2e /年","―"]
[null,"EMPJ","プロジェクト実施後排出量",{"$f":"$D$22","v":{"$error":"#N/A"}},"tCO2e /年","―"]
[]
[null,"３．プロジェクト実施後排出量の算定",null,null,null,{"$f":"IF($D$27=\"ふん尿分離\",D24+D25,D26)","v":{"$error":"#N/A"}}]
[null,"記号","定義","数値","単位","計算式"]
[null,"EMPJ","■ プロジェクト実施後排出量",{"$f":"IF($D$26=\"ふん尿分離\",D23+D24,D25)","v":{"$error":"#N/A"}},"tCO2e/年","EMPJ =∑{(EFN2O,n +EFN2o,i,n)× MAPJ,dairy × NPJ,n,dairy × DPJ,n,dairy )}×44/28 ×GWPN2O"]
[null,null,"　－ ふん",{"$f":"((($D28+$D32)*($D$36*$D$39+$D$37*$D$40)*$D$41))*(44/28)*$D$43","v":{"$error":"#N/A"}}]
[null,null,"　－尿",{"$f":"((($D29+$D33)*($D$36*$D$39+$D$37*$D$40)*$D$41))*(44/28)*$D$43","v":{"$error":"#N/A"}}]
[null,null,"　－ふん尿混合",{"$f":"((($D30+$D34)*($D$36*$D$39+$D$37*$D$40)*$D$41))*(44/28)*$D$43","v":{"$error":"#N/A"}}]
[null,"n","排せつ物の管理区分",{"$f":"入力用シート_牛!D19","v":0},"ー","ー"]
[null,"EFN2O,n","■ 排せつ管理区分 n の N2O 排出係数",null,null,"ー"]
[null,null,"　－ふん",{"$f":"入力用シート_牛!D34","v":{"$error":"#N/A"}},"tN2O-N/tN"]
[null,null,"　－尿",{"$f":"入力用シート_牛!D35","v":{"$error":"#N/A"}},"tN2O-N/tN"]
[null,null,"　－ふん尿混合",{"$f":"入力用シート_牛!D36","v":{"$error":"#N/A"}},"tN2O-N/tN"]
[null,"EFN2O,i,n","■ 排せつ管理区分 n の間接 N2O 排出係数",null,null,"EFN2O,i,n=(FracGasm1,n+FracGasm2,n-FracGasm1,n×FracGasm2,n)×EF"]
[null,null,"　－ふん",{"$f":"($D45+$D49-$D45*$D49)*$D$52","v":{"$error":"#N/A"}},"tN2O-N/tN"]
[null,null,"　－尿",{"$f":"($D46+$D50-$D46*$D50)*$D$52","v":{"$error":"#N/A"}},"tN2O-N/tN"]
[null,null,"　－ふん尿混合",{"$f":"($D47+$D51-$D47*$D51)*$D$52","v":{"$error":"#N/A"}},"tN2O-N/tN"]
[null,"MAPJ,dairy","■ プロジェクト実施後のアミノ酸バランス改善飼料を使用して飼養した場合の「乳用牛」1 頭、1 日当たりの排せつ物に含まれる窒素含有量",null,null,"MAPJ,dairy = (Nf ＋ Nu)/1,000,000"]
[null,null,"　－搾乳牛",{"$f":"($D$53+$D$55)/1000000","v":{"$error":"#DIV/0!"}},"tN/頭/日"]
[null,null,"　－乾乳牛・育乳牛",{"$f":"($D$54+$D$56)/1000000","v":0},"tN/頭/日"]
[null,"NPJ,n,dairy","■ プロジェクト実施後のアミノ酸バランス改善飼料を使用して飼養した「乳用牛」の平均飼養頭数",{"$f":"入力用シート_牛!$D$11","v":0},"頭","ー"]
[null,null,"　－（搾乳牛）",{"$f":"入力用シート_牛!$D$12","v":0},"頭","ー"]
[null,null,"　－（乾乳牛・育乳牛）",{"$f":"入力用シート_牛!$D$13","v":0},"頭","ー"]
[null,"DPJ,n,dairy","プロジェクト実施後のアミノ酸バランス改善飼料を使用して「乳用牛」を飼養した日数",{"$f":"入力用シート_牛!$D$14","v":0},"日","ー"]
[null,"44/28","N2O 中に含まれる窒素重量（tN2O-N）を N2O 重量（tN2O）に変換するための係数","ー","ー","ー"]
[null,"GWPN2O","N2O の地球温暖化係数",{"$f":"入力用シート_牛!$D$46","v":265},"tCO2/tN2O","ー"]
[null,"FracGasm1,n","■ 排せつ管理区分 n の畜舎における排せつ物から NH3 や NOx として揮発する割合",{"$f":"IF($D$26=\"ふん尿分離\",D45+D46,D47)","v":{"$error":"#N/A"}},null,"ー"]
[null,null,"　－ふん",{"$f":"入力用シート_牛!$D38","v":{"$error":"#N/A"}},"(tNH3-N+NOx-N)/tN"]
[null,null,"　－尿",{"$f":"入力用シート_牛!$D39","v":{"$error":"#N/A"}},"(tNH3-N+NOx-N)/tN"]
[null,null,"　－ふん尿混合",{"$f":"入力用シート_牛!$D40","v":{"$error":"#N/A"}},"(tNH3-N+NOx-N)/tN"]
[null,"FracGasm2,n","■ 排せつ管理区分 n の処理時に排せつ物から NH3 や NOx として揮発する割合",{"$f":"IF($D$26=\"ふん尿分離\",D49+D50,D51)","v":{"$error":"#N/A"}},null,"ー"]
[null,null,"　－ふん",{"$f":"入力用シート_牛!$D42","v":{"$error":"#N/A"}},"(tNH3-N+NOx-N)/tN"]
[null,null,"　－尿",{"$f":"入力用シート_牛!$D43","v":{"$error":"#N/A"}},"(tNH3-N+NOx-N)/tN"]
[null,null,"　－ふん尿混合",{"$f":"入力用シート_牛!$D44","v":{"$error":"#N/A"}},"(tNH3-N+NOx-N)/tN"]
[null,"EF","排出係数",{"$f":"入力用シート_牛!$D$45","v":1.4E-2},"tN2O-N/(t-NH3-N+Nox-N)","ー"]
[null,"Nf","ふん中窒素量（搾乳牛）",{"$f":"5.01*$D$10^1.2","v":0},"gN/頭/日","（搾乳牛）Nf = 5.01 × W1.2PJ,feed,dairy"]
[null,null,"ふん中窒素量（乾乳牛・育乳牛）",{"$f":"4.97*$D$10^1.21","v":0},null,"（乾乳牛・育乳牛）Nf = 4.97 × W1.21PJ,feed,dairy"]
[null,"Nu","尿中窒素量（搾乳牛）",{"$f":"16.57*($D$8/1000/$D$10)*100-138.6","v":{"$error":"#DIV/0!"}},"gN/頭/日","（搾乳牛）Nu = 16.57 × (WPJ,CP,dairy/1000/WPJ,feed,dairy) × 100 ー 138.6"]
[null,null,"尿中窒素量（乾乳牛・育乳牛）",{"$f":"0.24*($D$8/6.25)^1.14","v":0},null,"（乾乳牛・育乳牛）Nu = 0.24 × (WPJ,CP,dairy/6.25)1.14"]
[]
[null,"4．ベースライン排出量の算定"]
[null,"記号","定義","数値","単位","計算式"]
[null,"EMBL","■ ベースライン排出量",{"$f":"IF($D$26=\"ふん尿分離\",D61+D62,D63)","v":{"$error":"#N/A"}},null,"EMBL =∑{(EFN2O,n +EFN2o,i,n)× MABL,dairy × NBL,n,dairy × DBL,n,dairy )}×44/28 ×GWPN2O"]
[null,null,"　－ふん",{"$f":"((($D28+$D32)*($D$64*$D$67+$D$65*$D$68)*$D$69))*(44/28)*$D$43","v":{"$error":"#N/A"}},"tCO2e/年"]
[null,null,"　－尿",{"$f":"((($D29+$D33)*($D$64*$D$67+$D$65*$D$68)*$D$69))*(44/28)*$D$43","v":{"$error":"#N/A"}},"tCO2e/年"]
[null,null,"　－ふん尿混合",{"$f":"((($D30+$D34)*($D$64*$D$67+$D$65*$D$68)*$D$69))*(44/28)*$D$43","v":{"$error":"#N/A"}},"tCO2e/年"]
[null,"MABL,dairy","■ベースラインの慣用飼料を使用して飼養した場合の「乳用牛」1 頭、1 日当たりの排せつ物に含まれる窒素含有量\n　ー （搾乳牛）",{"$f":"($D$70+$D$72)/1000000","v":{"$error":"#DIV/0!"}},"tN/頭/日","（搾乳牛）MABL,dairy = (Nf + Nu)/1,000,000"]
[null,null,"　ー （乾乳牛・育乳牛）",{"$f":"($D$71+$D$73)/1000000","v":0},"tN/頭/日","（搾乳牛）MABL,dairy = (Nf + Nu)/1,000,000"]
[null,"NBL,n,dairy","■ ベースラインの慣用飼料を使用して飼養した「乳用牛」の平均飼養頭数\n搾乳牛",{"$f":"$D$67+$D$68","v":0},"頭","ー"]
[null,null,"　－（搾乳牛）",{"$f":"$D$39","v":0},"頭","ー"]
[null,null,"　－（乾乳牛・育乳牛）",{"$f":"$D$40","v":0},"頭","ー"]
[null,"DBL,n,dairy","ベースラインの慣用飼料を使用して「乳用牛」を飼養した日数",{"$f":"$D$41","v":0},"日","DPJ,n,dairy = DBL,n,dairy"]
[null,"Nf","■ふん中窒素量\n　ー （搾乳牛）",{"$f":"5.01*$D$9^1.2","v":0},"gN/頭/日","（搾乳牛）Nf = 5.01 × W1.2before,feed,dairy"]
[null,null,"　ー（ 乾乳牛・育乳牛）",{"$f":"4.97*$D$9^1.2","v":0},null,"（乾乳牛・育乳牛）Nf = 4.97 × W1.2before,feed,dairy"]
[null,"Nu","■尿中窒素量\n　ー （搾乳牛）",{"$f":"16.57*($D$7/1000/$D$9)*100-138.6","v":{"$error":"#DIV/0!"}},"gN/頭/日","（搾乳牛）Nu = 16.57 × (Wbefore,CP,dairy/1000/Wbefore,feed,dairy) × 100 ー 138.6"]
[null,null,"　ー （乾乳牛・育乳牛）",{"$f":"0.24*($D$7/6.25)^1.14","v":0},null,"（乾乳牛・育乳牛）Nu = 0.24 × (Wbefore,CP,dairy/6.25) 1.14"]

{"sheet":"計算方法_肉用牛 ","index":7,"n_rows":65,"n_cols":6,"rows_kept":65,"cut":false,"hidden":false,"merged":[[56,1,59,1],[40,2,40,3],[44,2,44,3],[27,2,27,3],[31,2,31,3]]}
[null,"３－２）計算方法_肉用牛",null,"【自動で計算されます。】"]
[null,null,null,null,"自動入力"]
[]
[]
[null,"１．適用条件"]
[null,"記号","定義","数値","単位","計算式"]
[null,"Wbefore,CP","プロジェクト実施前の 1 日当たりの CP 値",{"$f":"$D$9*$D$11*10","v":0},"g/日","Wbefore,CP =Wbefore, feed ×CRbefore,CP"]
[null,"WPJ,CP","プロジェクト実施後の 1 日当たりの CP 値",{"$f":"$D$10*$D$12*10","v":0},"g/日","WPJ,CP = WPJ,feed ×CRPJ,CP"]
[null,"Wbefore,feed","プロジェクト実施前の 1 日当たりの慣用飼料の平均重量（乾物摂取量）",{"$f":"入力用シート_牛!$D$18","v":0},"kg/日","―"]
[null,"WPJ,feed","プロジェクト実施後の 1 日当たりのアミノ酸バランス改善飼料の平均重量（乾物摂取量）",{"$f":"入力用シート_牛!$D$17","v":0},"kg/日","―"]
[null,"CRbefore,CP","プロジェクト実施前の慣用飼料の CP 含有率",{"$f":"入力用シート_牛!$D$24","v":16.399999999999999},"%","―"]
[null,"CRPJ,CP","プロジェクト実施後のアミノ酸バランス改善飼料の CP 含有率",{"$f":"入力用シート_牛!$D$23","v":13.4},"%","―"]
[]
[null,"２．排出削減量の算定"]
[null,"記号","定義","数値","単位","計算式"]
[null,"ER","排出削減量",{"$f":"$D$17-$D$18","v":{"$error":"#N/A"}},"tCO2e /年","ER= EM BL − EM PJ"]
[null,"EMBL","ベースライン排出量",{"$f":"$D$57","v":{"$error":"#N/A"}},"tCO2e /年","―"]
[null,"EMPJ","プロジェクト実施後排出量",{"$f":"$D$23","v":{"$error":"#N/A"}},"tCO2e /年","―"]
[]
[]
[null,"３．プロジェクト実施後排出量の算定"]
[null,"記号","定義","数値","単位","計算式"]
[null,"EMPJ","■ プロジェクト実施後排出量",{"$f":"IF($D$27=\"ふん尿分離\",D24+D25,D26)","v":{"$error":"#N/A"}},null,"EMPJ =∑{(EFN2O,n +EFN2o,i,n)× MAPJ,dairy × NPJ,n,dairy × DPJ,n,dairy )}×44/28 ×GWPN2O"]
[null,null,"　ー ふん",{"$f":"(($D29+$D33)*$D$36*$D$37*$D$38)*(44/28)*$D$40","v":{"$error":"#N/A"}},"tCO2e/年"]
[null,null,"　ー 尿",{"$f":"(($D30+$D34)*$D$36*$D$37*$D$38)*(44/28)*$D$40","v":{"$error":"#N/A"}},"tCO2e/年"]
[null,null,"　ー ふん尿混合",{"$f":"(($D31+$D35)*$D$36*$D$37*$D$38)*(44/28)*$D$40","v":{"$error":"#N/A"}},"tCO2e/年"]
[null,"n","排せつ物の管理区分",{"$f":"入力用シート_牛!$D$19","v":0},"ー","ー"]
[null,"EFN2O,n","■ 排せつ管理区分 n の N2O 排出係数"]
[null,null,"　ー ふん",{"$f":"入力用シート_牛!D34","v":{"$error":"#N/A"}},"tN2O-N/tN"]
[null,null,"　ー 尿",{"$f":"入力用シート_牛!D35","v":{"$error":"#N/A"}},"tN2O-N/tN"]
[null,null,"　ー ふん尿混合",{"$f":"入力用シート_牛!D36","v":{"$error":"#N/A"}},"tN2O-N/tN","ー"]
[null,"EFN2O,i,n","■ 排せつ管理区分 n の間接 N2O 排出係数",null,null,"EFN2O,i,n=(FracGasm1,n+FracGasm2,n-FracGasm1,n×FracGasm2,n)×EF"]
[null,null,"　ー ふん",{"$f":"($D42+$D46-$D42*$D46)*$D$49","v":{"$error":"#N/A"}},"tN2O-N/tN"]
[null,null,"　ー 尿",{"$f":"($D43+$D47-$D43*$D47)*$D$49","v":{"$error":"#N/A"}},"tN2O-N/tN"]
[null,null,"　ー ふん尿混合",{"$f":"($D44+$D48-$D44*$D48)*$D$49","v":{"$error":"#N/A"}},"tN2O-N/tN"]
[null,"MAPJ,beef","プロジェクト実施後のアミノ酸バランス改善飼料を使用して飼養した場合の「肉用牛」1 頭、1 日当たりの排せつ物に含まれる窒素含有量",{"$f":"($D$50+$D$51)/1000000","v":0},"tN/頭/日","MAPJ,beef = (Nf ＋ Nu)/1,000,000"]
[null,"NPJ,n,beef","プロジェクト実施後のアミノ酸バランス改善飼料を使用して飼養した「肉用牛」の平均飼養頭数",{"$f":"入力用シート_牛!$D$15","v":0},"頭","ー"]
[null,"DPJ,n,dairy","プロジェクト実施後のアミノ酸バランス改善飼料を使用して「肉用牛」を飼養した日数",{"$f":"入力用シート_牛!$D$16","v":0},"日","ー"]
[null,"44/28","N2O 中に含まれる窒素重量（tN2O-N）を N2O 重量（tN2O）に変換するための係数","ー","ー","ー"]
[null,"GWPN2O","N2O の地球温暖化係数",{"$f":"入力用シート_牛!$D$46","v":265},"tCO2/tN2O","ー"]
[null,"FracGasm1,n","■ 排せつ管理区分 n の畜舎における排せつ物から NH3 や NOx として揮発する割合",null,null,"ー"]
[null,null,"　ー ふん",{"$f":"入力用シート_牛!$D38","v":{"$error":"#N/A"}},"(tNH3-N+NOx-N)/tN"]
[null,null,"　ー 尿",{"$f":"入力用シート_牛!$D39","v":{"$error":"#N/A"}},"(tNH3-N+NOx-N)/tN"]
[null,null,"　ー ふん尿混合",{"$f":"入力用シート_牛!$D40","v":{"$error":"#N/A"}},"(tNH3-N+NOx-N)/tN"]
[null,"FracGasm2,n","■ 排せつ管理区分 n の処理時に排せつ物から NH3 や NOx として揮発する割合",null,null,"ー"]
[null,null,"　ー ふん",{"$f":"入力用シート_牛!$D42","v":{"$error":"#N/A"}},"(tNH3-N+NOx-N)/tN"]
[null,null,"　ー 尿",{"$f":"入力用シート_牛!$D43","v":{"$error":"#N/A"}},"(tNH3-N+NOx-N)/tN"]
[null,null,"　ー ふん尿混合",{"$f":"入力用シート_牛!$D44","v":{"$error":"#N/A"}},"(tNH3-N+NOx-N)/tN"]
[null,"EF","排出係数",{"$f":"入力用シート_牛!$D$45","v":1.4E-2},"tN2O-N/(t-NH3-N+Nox-N)","ー"]
[null,"Nf","ふん中窒素量",{"$f":"4.97*$D$10^1.2","v":0},"gN/頭/日","Nf = 4.97 × W1.21PJ,feed,dairy"]
[null,"Nu","尿中窒素量",{"$f":"0.24*($D$8/6.25)^1.14","v":0},"gN/頭/日","Nu = 0.24 × NI1.14, NI = WPJ,CP,beef/6.25"]
[]
[]
[]
[null,"4．ベースライン排出量の算定"]
[null,"記号","定義","数値","単位","計算式"]
[null,"EMBL","■ ベースライン排出量",{"$f":"IF($D$27=\"ふん尿分離\",D58+D59,D60)","v":{"$error":"#N/A"}},"tCO2e/年","EMBL =∑((EFN2O,n+EMN2O,i,n) × MABL,beef × NBL,n,beef × DBL,n,beef )×44/28 ×GWPN2O"]
[null,null,"　ー ふん",{"$f":"(($D29+$D33)*$D$61*$D$62*$D$63)*(44/28)*$D$40","v":{"$error":"#N/A"}}]
[null,null,"　ー 尿",{"$f":"(($D30+$D34)*$D$61*$D$62*$D$63)*(44/28)*$D$40","v":{"$error":"#N/A"}}]
[null,null,"　ー ふん尿混合",{"$f":"(($D31+$D35)*$D$61*$D$62*$D$63)*(44/28)*$D$40","v":{"$error":"#N/A"}}]
[null,"MABL,beef","ベースラインの慣用飼料を使用して飼養した場合の「肉用牛」1 頭、1 日当たりの排せつ物に含まれる窒素含有量",{"$f":"($D$64+$D$65)/1000000","v":0},"tN/頭/日","MABL,dairy = (Nf + Nu)/1,000,000"]
[null,"NBL,n,beef","ベースラインの慣用飼料を使用して飼養した「肉用牛」の平均飼養頭数",{"$f":"$D$37","v":0},"頭","ー"]
[null,"DBL,n,beef","ベースラインの慣用飼料を使用して「肉用牛」を飼養した日数",{"$f":"$D$38","v":0},"日","DPJ,n,dairy = DBL,n,dairy"]
[null,"Nf","ふん中窒素量",{"$f":"5.01*$D$9^1.2","v":0},"gN/頭/日","Nf = 4.97 × W1.21before,feed,beef"]
[null,"Nu","尿中窒素量",{"$f":"0.24*($D$8/6.25)^1.14","v":0},"gN/頭/日","Nu = 0.24 × NI1.14, NI = WPJ,CP,beef/6.25"]

{"sheet":"←ここまで","index":8,"n_rows":0,"n_cols":0,"rows_kept":0,"cut":false,"hidden":true,"merged":[]}

{"sheet":"※1","index":9,"n_rows":21,"n_cols":10,"rows_kept":21,"cut":false,"hidden":true,"merged":[]}
["【排せつ管理区分の概要】",null,null,"牛",null,null,"豚",null,null,"ブロイラー"]
["処理区分","排せつ物管理区分の概要",null,"ふん","尿","ふん尿混合","ふん","尿","ふん尿混合","ふん"]
["天日乾燥","天日により乾燥し、ふんの取扱性（貯蔵施用、臭気等）を改善する。",null,"天日乾燥","天日乾燥","天日乾燥","天日乾燥","天日乾燥","天日乾燥","天日乾燥"]
["火力乾燥","火力により乾燥し、ふんの取扱性を改善する。",null,"火力乾燥","火力乾燥","火力乾燥","火力乾燥","火力乾燥","火力乾燥","火力乾燥"]
["炭化処理","無酸素あるいは酸素が不足した状況下で、高温で有機物を熱分解することにより炭化物を生産する。",null,"開放型強制発酵","開放型強制発酵","開放型強制発酵","開放型強制発酵","開放型強制発酵","開放型強制発酵","炭化処理"]
["開放型強制発酵・ふん","スクープ式堆肥化施設など、開放型で強制通気や攪拌を行い数日～数週間で発酵させる。",null,"密閉型強制発酵","密閉型強制発酵","密閉型強制発酵","密閉型強制発酵","密閉型強制発酵","密閉型強制発酵","開放型強制発酵"]
["開放型強制発酵・尿","開放型施設で曝気処理を行っている。",null,"堆積発酵","堆積発酵","堆積発酵","堆積発酵","堆積発酵","堆積発酵","密閉型強制発酵"]
["開放型強制発酵・ふん尿混合","スクープ式堆肥化施設など、開放型で強制通気や攪拌を行い数日～数週間で発酵させる。",null,"焼却","焼却","焼却","焼却","焼却","焼却","堆積発酵"]
["密閉型強制発酵・ふん","密閉縦型施設など、密閉型で強制通気や攪拌を行い数日～数週間で発酵させる。",null,"浄化","浄化","浄化","浄化","浄化","浄化","焼却"]
["密閉型強制発酵・尿","密閉型施設で曝気処理を行っている。",null,"貯留","貯留","貯留","貯留","貯留","貯留","貯留"]
["密閉型強制発酵・ふん尿混合","密閉縦型施設など、密閉型で強制通気や攪拌を行い数日～数週間で発酵させる。",null,"メタン発酵","産業廃棄物処理","メタン発酵","メタン発酵","産業廃棄物処理","メタン発酵","メタン発酵"]
["堆積発酵","堆肥化方法の一つ。堆肥盤、堆肥舎等に高さ1.5-2m 程度で堆積し、時々切り返しながら数ヶ月かけて発酵させる。",null,"メタン発酵","放牧","産業廃棄物処理","産業廃棄物処理","その他","産業廃棄物処理","産業廃棄物処理"]
["焼却","ふんの容積減少や廃棄、及びエネルギー利用（鶏ふんボイラー）のため行う。",null,"産業廃棄物処理","その他","放牧","その他",null,"その他","放牧"]
["浄化","活性汚泥など、好気性微生物によって、汚濁成分を分離する。",null,"放牧",null,"その他・ふん尿混合",null,null,null,"その他"]
["貯留","貯留槽（スラリーストア等）に貯留する。",null,"その他"]
["メタン発酵・ふん","スラリー状の家畜排せつ物を嫌気的条件下で発酵させる。発生したメタンガスはエネルギー利用する。"]
["メタン発酵・ふん尿混合","スラリー状の家畜排せつ物を嫌気的条件下で発酵させる。発生したメタンガスはエネルギー利用する。"]
["産業廃棄物処理","産業廃棄物として処理。"]
["放牧","採食のための植生を有する土地で家畜を飼養する。N2Oは「放牧家畜の排せつ物（3.D.a.3）」で計上。"]
["その他・ふん","上記以外の処理を行っている。"]
["その他・ふん尿混合","上記以外の処理を行っている。"]

{"sheet":"※2","index":10,"n_rows":22,"n_cols":23,"rows_kept":22,"cut":false,"hidden":true,"merged":[]}
[null,null,"【排泄管理区分 n の乳用牛・肉用牛・豚・ブロイラーの排せつ物管理（n）に伴う N2O 排出係数（g\u0002N2O-N/gN）】"]
[null,null,"処理区分","乳用牛","肉用牛","豚","ブロイラー",null,"選択肢・ふん","乳用牛","肉用牛","豚","ブロイラー","選択肢・尿","乳用牛","肉用牛","豚","ブロイラー","選択肢・ふん尿混合","乳用牛","肉用牛","豚","ブロイラー"]
[null,null,"天日乾燥",0.02,0.02,0.02,3.3E-3,null,"天日乾燥",0.02,0.02,0.02,3.3E-3,"天日乾燥",0.02,0.02,0.02,"－","天日乾燥",0.02,0.02,0.02,"－"]
[null,null,"火力乾燥",0.02,0.02,0.02,0.02,null,"火力乾燥",0.02,0.02,0.02,0.02,"火力乾燥",0.02,0.02,0.02,"－","火力乾燥",0.02,0.02,0.02,"－"]
[null,null,"炭化処理","－","－","－",0.02,null,"炭化処理","－","－","－",0.02,"炭化処理","－","－","－","－","炭化処理","－","－","－","－"]
[null,null,"開放型強制発酵・ふん",5.0000000000000001E-3,5.0000000000000001E-3,5.0000000000000001E-3,5.0000000000000001E-3,null,"開放型強制発酵",5.0000000000000001E-3,5.0000000000000001E-3,5.0000000000000001E-3,5.0000000000000001E-3,"開放型強制発酵",0.01,0.01,0.01,"－","開放型強制発酵",5.0000000000000001E-3,5.0000000000000001E-3,5.0000000000000001E-3,"－"]
[null,null,"開放型強制発酵・尿",0.01,0.01,0.01,"－",null,"密閉型強制発酵",2.5000000000000001E-3,2.5000000000000001E-3,1.6000000000000001E-3,1.6000000000000001E-3,"密閉型強制発酵",6.0000000000000001E-3,6.0000000000000001E-3,6.0000000000000001E-3,"－","密閉型強制発酵",2.5000000000000001E-3,2.5000000000000001E-3,1.6000000000000001E-3,"－"]
[null,null,"開放型強制発酵・ふん尿混合",5.0000000000000001E-3,5.0000000000000001E-3,5.0000000000000001E-3,"－",null,"堆積発酵",2.4E-2,1.6E-2,2.5000000000000001E-2,8.0000000000000004E-4,"堆積発酵",2.4E-2,1.6E-2,2.5000000000000001E-2,"－","堆積発酵",2.4E-2,1.6E-2,2.5000000000000001E-2,"－"]
[null,null,"密閉型強制発酵・ふん",2.5000000000000001E-3,2.5000000000000001E-3,1.6000000000000001E-3,1.6000000000000001E-3,null,"焼却",1E-3,1E-3,1E-3,1E-3,"焼却",1E-3,1E-3,1E-3,"－","焼却",1E-3,1E-3,1E-3,"－"]
[null,null,"密閉型強制発酵・尿",6.0000000000000001E-3,6.0000000000000001E-3,6.0000000000000001E-3,"－",null,"浄化",2.8799999999999999E-2,2.8799999999999999E-2,2.87E-2,"－","浄化",2.8799999999999999E-2,2.8799999999999999E-2,2.87E-2,"－","浄化",2.8799999999999999E-2,2.8799999999999999E-2,2.87E-2,"－"]
[null,null,"密閉型強制発酵・ふん尿混合",2.5000000000000001E-3,2.5000000000000001E-3,1.6000000000000001E-3,"－",null,"貯留",2.0000000000000001E-4,0,0,8.0000000000000004E-4,"貯留",2.0000000000000001E-4,0,0,"－","貯留",2.0000000000000001E-4,0,0,"－"]
[null,null,"堆積発酵",2.4E-2,1.6E-2,2.5000000000000001E-2,8.0000000000000004E-4,null,"メタン発酵",2.4E-2,1.6E-2,2.5000000000000001E-2,8.0000000000000004E-4,"産業廃棄物処理",2.0000000000000001E-4,0,0,"－","メタン発酵",1.5E-3,1.5E-3,1.5E-3,"－"]
[null,null,"焼却",1E-3,1E-3,1E-3,1E-3,null,"産業廃棄物処理",2.0000000000000001E-4,0,0,8.0000000000000004E-4,"放牧",6.8399999999999997E-3,6.8399999999999997E-3,"－","－","産業廃棄物処理",2.0000000000000001E-4,0,0,"－"]
[null,null,"浄化",2.8799999999999999E-2,2.8799999999999999E-2,2.87E-2,"－",null,"放牧",6.8399999999999997E-3,6.8399999999999997E-3,"－",3.3E-3,"その他",{"$f":"AVERAGE(O3:O13)","v":1.1704000000000003E-2},{"$f":"AVERAGE(P3:P13)","v":1.0864E-2},{"$f":"AVERAGE(Q3:Q13)","v":1.23E-2},"－","放牧",6.8399999999999997E-3,6.8399999999999997E-3,"－","－"]
[null,null,"貯留",2.0000000000000001E-4,0,0,8.0000000000000004E-4,null,"その他",2.4E-2,0.02,2.5000000000000001E-2,0.02,null,null,null,null,null,"その他",2.8799999999999999E-2,2.8799999999999999E-2,2.87E-2,"－"]
[null,null,"メタン発酵・ふん",2.4E-2,1.6E-2,2.5000000000000001E-2,8.0000000000000004E-4]
[null,null,"メタン発酵・ふん尿混合",1.5E-3,1.5E-3,1.5E-3,"－"]
[null,null,"産業廃棄物処理",2.0000000000000001E-4,0,0,8.0000000000000004E-4]
[null,null,"放牧",6.8399999999999997E-3,6.8399999999999997E-3,"－",3.3E-3]
[null,null,"その他・ふん",2.4E-2,0.02,2.5000000000000001E-2,0.02]
[null,null,"その他・ふん尿混合",2.8799999999999999E-2,2.8799999999999999E-2,2.87E-2,"－"]
[null,null,"不明",{"$f":"AVERAGE(D3:D21)","v":1.1685555555555555E-2},{"$f":"AVERAGE(E3:E21)","v":1.0552222222222223E-2},1.2005882352941177E-2,6.4500000000000009E-3]

{"sheet":"※3","index":11,"n_rows":26,"n_cols":12,"rows_kept":26,"cut":false,"hidden":true,"merged":[]}
["【排せつ管理区分 n の畜舎における排せつ物から NH3 や NOx として揮発する割合と処理時に排 せつ物から NH3 や NOx として揮発する割合((tNH3-N+NOx-N)/tN)】"]
["家畜種","処理方法",null,"畜舎からの揮発割合","処理時揮発割合",null,null,"選択肢",null,"選択肢",null,"A&B&C（大連追加）"]
["乳用牛","ふん","強制発酵以外",0.10299999999999999,0.13700000000000001,null,null,"ふん尿分離",{"$f":"B3&\"・\"&C3","v":"ふん・強制発酵以外"},null,null,{"$f":"A3&\"    ー \"&B3&C3","v":"乳用牛    ー ふん強制発酵以外"}]
["乳用牛","ふん","強制発酵",0.10299999999999999,1.9E-2,null,null,"ふん尿混合",{"$f":"B4&\"・\"&C4","v":"ふん・強制発酵"},null,null,{"$f":"A4&\"    ー \"&B4&C4","v":"乳用牛    ー ふん強制発酵"}]
["乳用牛","尿","浄化以外",0.10299999999999999,0.11,null,null,"その他","尿・浄化以外",null,null,"乳用牛    ー 尿浄化以外"]
["乳用牛","尿","浄化",0.10299999999999999,0,null,null,null,"尿・浄化",null,null,"乳用牛    ー 尿浄化"]
["乳用牛","ふん尿混合","浄化・貯留・メタン発酵以外",4.4999999999999998E-2,0.13700000000000001,null,null,null,"ふん尿混合・浄化・貯留・メタン発酵以外",null,null,"乳用牛    ー ふん尿混合浄化・貯留・メタン発酵以外"]
["乳用牛","ふん尿混合","浄化",0.10299999999999999,0,null,null,null,"ふん尿混合・浄化",null,null,"乳用牛    ー ふん尿混合浄化"]
["乳用牛","ふん尿混合","貯留・メタン発酵",0.10299999999999999,0.108,null,null,null,"ふん尿混合・貯留・メタン発酵",null,null,"乳用牛    ー ふん尿混合貯留・メタン発酵"]
["乳用牛","その他",null,{"$f":"AVERAGE(D3:D9)","v":9.4714285714285709E-2},{"$f":"AVERAGE(E3:E9)","v":7.2999999999999995E-2},null,null,null,{"$f":"B10","v":"その他"},null,null,"乳用牛    ー その他"]
["肉用牛","ふん","強制発酵以外",6.3799999999999996E-2,0.13700000000000001,null,null,null,"ふん・強制発酵以外",null,null,"肉用牛    ー ふん強制発酵以外"]
["肉用牛","ふん","強制発酵",6.3799999999999996E-2,1.9E-2,null,null,null,"ふん・強制発酵",null,null,"肉用牛    ー ふん強制発酵"]
["肉用牛","尿","浄化以外",6.3799999999999996E-2,0.11,null,null,null,"尿・浄化以外",null,null,"肉用牛    ー 尿浄化以外"]
["肉用牛","尿","浄化",6.3799999999999996E-2,0,null,null,null,"尿・浄化",null,null,"肉用牛    ー 尿浄化"]
["肉用牛","ふん尿混合","浄化・貯留・メタン発酵以外",6.3799999999999996E-2,0.13700000000000001,null,null,null,"ふん尿混合・浄化・貯留・メタン発酵以外",null,null,"肉用牛    ー ふん尿混合浄化・貯留・メタン発酵以外"]
["肉用牛","ふん尿混合","浄化",6.3799999999999996E-2,0,null,null,null,"ふん尿混合・浄化",null,null,"肉用牛    ー ふん尿混合浄化"]
["肉用牛","ふん尿混合","貯留・メタン発酵",6.3799999999999996E-2,0.108,null,null,null,"ふん尿混合・貯留・メタン発酵",null,null,"肉用牛    ー ふん尿混合貯留・メタン発酵"]
["肉用牛","その他",null,{"$f":"AVERAGE(D11:D17)","v":6.3799999999999982E-2},{"$f":"AVERAGE(E11:E17)","v":7.2999999999999995E-2},null,null,null,{"$f":"B18","v":"その他"},null,null,"肉用牛    ー その他"]
["豚","ふん","すべての処理",0.14699999999999999,0.19700000000000001,null,null,null,"ふん・すべての処理",null,null,"豚    ー ふんすべての処理"]
["豚","尿","浄化以外",0.14699999999999999,0.27,null,null,null,"尿・浄化以外",null,null,"豚    ー 尿浄化以外"]
["豚","尿","浄化",0.14699999999999999,0,null,null,null,"尿・浄化",null,null,"豚    ー 尿浄化"]
["豚","ふん尿混合","浄化・貯留・メタン発酵以外",0.158,0.24199999999999999,null,null,null,"ふん尿混合・浄化・貯留・メタン発酵以外",null,null,"豚    ー ふん尿混合浄化・貯留・メタン発酵以外"]
["豚","ふん尿混合","浄化",0.14699999999999999,0,null,null,null,"ふん尿混合・浄化",null,null,"豚    ー ふん尿混合浄化"]
["豚","ふん尿混合","貯留・メタン発酵",0.14699999999999999,0.25,null,null,null,"ふん尿混合・貯留・メタン発酵",null,null,"豚    ー ふん尿混合貯留・メタン発酵"]
["ブロイラー","ふん","すべての処理",8.4000000000000005E-2,0.51500000000000001,null,null,null,"ふん・すべての処理",null,null,"ブロイラー    ー ふんすべての処理"]
[null,"その他","その他",{"$f":"AVERAGE(D19:D25)","v":0.13957142857142857},{"$f":"AVERAGE(E19:E25)","v":0.2105714285714286},null,null,null,{"$f":"B26","v":"その他"},null,null,"    ー その他その他"]

{"sheet":"AG-001（計算方法）","index":12,"n_rows":190,"n_cols":6,"rows_kept":190,"cut":false,"hidden":true,"merged":[[165,0,166,0],[165,1,166,1],[165,2,166,2],[165,3,166,3],[167,0,168,0],[167,1,168,1],[167,2,168,2],[167,3,168,3],[73,0,74,0],[73,1,74,1],[73,2,74,2],[73,3,74,3],[75,0,76,0],[75,1,76,1],[75,2,76,2],[75,3,76,3]]}
[]
["１．適用条件"]
["プロジェクト実施前及びプロジェクト実施後の給餌量（CP）"]
[]
["記号","定義","数値","単位","計算式","備考"]
["Wbefore,CP","プロジェクト実施前の 1 日当たりの CP 値",null,"g/日","Wbefore,CP =Wbefore, feed ×CRbefore,CP","ー"]
["WPJ,CP","プロジェクト実施後の 1 日当たりの CP 値",null,"g/日","WPJ,CP = WPJ,feed ×CRPJ,CP","ー"]
["Wbefore,feed","プロジェクト実施前の 1 日当たりの慣用飼料の平均重量（乾物摂取\n量）",null,"kg/日","―","ー"]
["WPJ,feed","プロジェクト実施後の 1 日当たりのアミノ酸バランス改善飼料の平\n均重量（乾物摂取量）",null,"kg/日","―","ー"]
["CRbefore,CP","プロジェクト実施前の慣用飼料の CP 含有率",null,"%","―","ー"]
["CRPJ,CP","プロジェクト実施後のアミノ酸バランス改善飼料の CP 含有率",null,"%","―","ー"]
[]
[]
["２．排出削減量の算定"]
["記号","定義","数値","単位","計算式","備考"]
["ER","排出削減量",null,"tCO2e /年","ER= EM BL − EM PJ","ー"]
["EMBL","ベースライン排出量",null,"tCO2e /年","―","【温室効果ガス】N2O\n【主要排出活動】慣用飼料で飼養した牛・豚・ブロイラーの排せつ物を処理する過程での排出量"]
["EMPJ","プロジェクト実施後排出量",null,"tCO2e /年","―","【温室効果ガス】N2O\n【主要排出活動】アミノ酸バランス改善飼料で飼養した牛・豚・ブロイラーの排せつ物を処理する過程での排出量"]
[]
[]
["3．プロジェクト実施後排出量の算定"]
["1) 豚"]
["記号","定義","数値","単位","計算式","備考"]
["EMPJ","プロジェクト実施後排出量",null,"tCO2e/年","EMPJ =∑{(EFN2O,n +EFN2o,i,n)× MAPJ,pig × NPJ,n,pig × DPJ,n,pig )}×44/28 ×GWPN2O","ー"]
["n","排せつ物の管理区分",null,"ー","ー","排せつ物の管理区分（n）は、日本温室効果ガスインベントリ報告書に基づく。各管理区分の概要については、6．モニタリング方法を参照。"]
["EFN2O,n","排せつ管理区分 n の N2O 排出係数",null,"tN2O-N/tN","ー","ー"]
["EFN2O,i,n","排せつ管理区分 n の間接 N2O 排出係数",null,"tN2O-N/tN","EFN2O,i,n=(FracGasm1,n+FracGasm2,n-FracGasm1,n×FracGasm2,n)×EF","ー"]
["MAPJ,pig","プロジェクト実施後のアミノ酸バランス改善飼料を使用して飼養し\nた場合の「肥育豚」1 頭、1 日当たりの排せつ物に含まれる窒素含有\n量",null,"tN/頭/日","MAPJ,pig = MABL,pig × (1 - RN × 1/100)","ー"]
["NPJ,n,pig","プロジェクト実施後のアミノ酸バランス改善飼料を使用して飼養し\nた「肥育豚」の平均飼養頭数",null,"頭","ー","ー"]
["DPJ,n,pig","プロジェクト実施後のアミノ酸バランス改善飼料を使用して「肥育\n豚」を飼養した日数",null,"日","ー","ー"]
["44/28","N2O 中に含まれる窒素重量（tN2O-N）を N2O 重量（tN2O）に変\n換するための係数",null,"ー","ー","ー"]
["GWPN2O","N2O の地球温暖化係数",null,"tCO2/tN2O","ー","ー"]
["FracGasm1,n","排せつ管理区分 n の畜舎における排せつ物から NH3 や NOx として揮発する割合",null,"(tNH3-N+NOx-N)/tN","ー","ー"]
["FracGasm2,n","排せつ管理区分 n の処理時に排せつ物から NH3 や NOx として揮発する割合",null,"(tNH3-N+NOx-N)/tN","ー","ー"]
["EF","排出係数",null,"tN2O-N/(t-NH3-N+Nox-N)","ー","ー"]
["MABL,pig ","ベースラインの慣用飼料を使用して飼養した場合の「肥育豚」1 頭、\n1 日当たりの排せつ物に含まれる窒素含有量",null,"tN/頭/日","ー","ー"]
["RN","排せつ物中の窒素低減率",null,"%","RN = 3.70 + 7.46(CRBL,CP - CRPJ,CP)","ー"]
["CRBL,CP","ベースラインの慣用飼料の CP 含有率",null,"%","ー","ー"]
["CRPJ,CP","プロジェクト実施後のアミノ酸バランス改善飼料の CP 含有率",null,"%","ー","ー"]
[]
["2) ブロイラー"]
["記号","定義","数値","単位","計算式","備考"]
["EMPJ","プロジェクト実施後排出量 ",null,"tCO2e/年","EMPJ =∑{(EFN2O,n +EFN2o,i,n)× MAPJ,broiler × NPJ,n,broiler × DPJ,n,broiler )}×44/28 ×GWPN2O","ー"]
["n","排せつ物の管理区分",null,"ー","ー","排せつ物の管理区分（n）は、日本温室効果ガスインベントリ報告書に基づく。各管理区分の概要については、6．モニタリング方法を参照。"]
["EFN2O,n","排せつ管理区分 n の N2O 排出係数",null,"tN2O-N/tN","ー","ー"]
["EFN2O,i,n","排せつ管理区分 n の間接 N2O 排出係数",null,"tN2O-N/tN","EFN2O,i,n=(FracGasm1,n+FracGasm2,n-FracGasm1,n×FracGasm2,n)×EF","ー"]
["MAPJ,broiler","プロジェクト実施後のアミノ酸バランス改善飼料を使用して飼養し\nた場合の「ブロイラー」1 羽、1 日当たりの排せつ物に含まれる窒素\n含有量",null,"tN/羽/日","MAPJ,broiler = MABL,broiler × (1 - RN × 1/100)","ー"]
["NPJ,n,broiler","プロジェクト実施後のアミノ酸バランス改善飼料を使用して飼養し\nた「ブロイラー」の平均飼養羽数",null,"羽","ー","ー"]
["DPJ,n,broiler","プロジェクト実施後のアミノ酸バランス改善飼料を使用して「ブロ\nイラー」を飼養した日数",null,"日","ー","ー"]
["44/28","N2O 中に含まれる窒素重量（tN2O-N）を N2O 重量（tN2O）に変\n換するための係数",null,"ー","ー","ー"]
["GWPN2O","N2O の地球温暖化係数",null,"tCO2/tN2O","ー","ー"]
["FracGasm1,n","排せつ管理区分 n の畜舎における排せつ物から NH3 や NOx として揮発する割合",null,"(tNH3-N+NOx-N)/tN","ー","ー"]
["FracGasm2,n","排せつ管理区分 n の処理時に排せつ物から NH3 や NOx として揮発する割合",null,"(tNH3-N+NOx-N)/tN","ー","ー"]
["EF","排出係数",null,"tN2O-N/(t-NH3-N+Nox-N)","ー","ー"]
["MABL,broiler","ベースラインの慣用飼料を使用して飼養した場合の「ブロイラー」1羽、1 日当たりの排せつ物に含まれる窒素含有量",null,"tN/羽/日","ー","ー"]
["RN","排せつ物中の窒素低減率",null,"%","RN = 0.64 + 7.25(CRBL,CP - CRPJ,CP)","ー"]
["CRBL,CP","ベースラインの慣用飼料の CP 含有率 N2O",null,"%","ー","ー"]
["CRPJ,CP","プロジェクト実施後のアミノ酸バランス改善飼料の CP 含有率",null,"%","ー","ー"]
[]
["3-1) 乳用牛"]
["記号","定義","数値","単位","計算式","備考"]
["EMPJ","プロジェクト実施後排出量",null,"tCO2e/年","EMPJ =∑{(EFN2O,n +EFN2o,i,n)× MAPJ,dairy × NPJ,n,dairy × DPJ,n,dairy )}×44/28 ×GWPN2O","計算式は乳用牛"]
["n","排せつ物の管理区分 ",null,"ー","ー","排せつ物の管理区分（n）は、日本温室効果ガスインベントリ報告書に基づく。各管理区分の概要については、6．モニタリング方法を参照。"]
["EFN2O,n","排せつ管理区分 n の N2O 排出係数",null,"tN2O-N/tN","ー","ー"]
["EFN2O,i,n","排せつ管理区分 n の間接 N2O 排出係数",null,"tN2O-N/tN","EFN2O,i,n=(FracGasm1,n+FracGasm2,n-FracGasm1,n×FracGasm2,n)×EF","ー"]
["MAPJ,dairy","プロジェクト実施後のアミノ酸バランス改善飼料を使用して飼養し\nた場合の「乳用牛」1 頭、1 日当たりの排せつ物に含まれる窒素含有\n量",null,"tN/頭/日","MAPJ,dairy = (Nf ＋ Nu)/1,000,000","計算式は乳用牛"]
["NPJ,n,dairy","プロジェクト実施後のアミノ酸バランス改善飼料を使用して飼養し\nた「乳用牛」の平均飼養頭数",null,"頭","ー","ー"]
["DPJ,n,dairy","プロジェクト実施後のアミノ酸バランス改善飼料を使用して「乳用\n牛」を飼養した日数",null,"日","ー","ー"]
["44/28","N2O 中に含まれる窒素重量（tN2O-N）を N2O 重量（tN2O）に変\n換するための係数",null,"ー","ー","ー"]
["GWPN2O","N2O の地球温暖化係数",null,"tCO2/tN2O","ー","ー"]
["FracGasm1,n","排せつ管理区分 n の畜舎における排せつ物から NH3 や NOx として揮発する割合",null,"(tNH3-N+NOx-N)/tN","ー","ー"]
["FracGasm2,n","排せつ管理区分 n の処理時に排せつ物から NH3 や NOx として揮発する割合",null,"(tNH3-N+NOx-N)/tN","ー","ー"]
["EF","排出係数",null,"tN2O-N/(t-NH3-N+Nox-N)","ー","ー"]
["Nf","ふん中窒素量",null,"gN/頭/日","Nf = 5.01 × W1.2PJ,feed,dairy","計算式は搾乳牛"]
[null,null,null,null,"Nf = 4.97 × W1.21PJ,feed,dairy","計算式は乾乳牛・育乳牛"]
["Nu","尿中窒素量",null,"gN/頭/日","Nu = 16.57 × (WPJ,CP,dairy/1000/WPJ,feed,dairy) × 100 ー 138.6","計算式は搾乳牛"]
[null,null,null,null,"Nu = 0.24 × (WPJ,CP,dairy/6.25)1.14","計算式は乾乳牛・育乳牛"]
["WPJ,CP,dairy","プロジェクト実施後の慣用飼料の CP 値",null,"g","ー","ー"]
["WPJ,feed,dairy","プロジェクト実施後の 1 日当たりのアミノ酸バランス改善飼料の\n平均重量（乾物摂取量）",null,"Kg/日","ー","ー"]
[]
["3-2) 肉用牛"]
["記号","定義","数値","単位","計算式","備考"]
["EMPJ","プロジェクト実施後排出量 ",null,"tCO2e/年","EMPJ =∑{(EFN2O,n +EFN2o,i,n)× MAPJ,beef × NPJ,n,beef × DPJ,n,beef )}×44/28 ×GWPN2O","ー"]
["n","排せつ物の管理区分",null,"ー","ー","排せつ物の管理区分（n）は、日本温室効果ガスインベントリ報告書に基づく。各管理区分の概要については、6．モニタリング方法を参照。"]
["EFN2O,n","排せつ管理区分 n の N2O 排出係数",null,"tN2O-N/tN","ー","ー"]
["EFN2O,i,n","排せつ管理区分 n の間接 N2O 排出係数",null,"tN2O-N/tN","EFN2O,i,n=(FracGasm1,n+FracGasm2,n-FracGasm1,n×FracGasm2,n)×EF","ー"]
["MAPJ,beef","プロジェクト実施後のアミノ酸バランス改善飼料を使用して飼養し\nた場合の「肉用牛」1 頭、1 日当たりの排せつ物に含まれる窒素含有\n量",null,"tN/頭/日","MAPJ,beef = (Nf ＋ Nu)/1,000,000","ー"]
["NPJ,n,beef","プロジェクト実施後のアミノ酸バランス改善飼料を使用して飼養し\nた「肉用牛」の平均飼養頭数",null,"頭","ー","ー"]
["DPJ,n,beef","プロジェクト実施後のアミノ酸バランス改善飼料を使用して「肉用\n牛」を飼養した日数",null,"日","ー","ー"]
["44/28","N2O 中に含まれる窒素重量（tN2O-N）を N2O 重量（tN2O）に変\n換するための係数",null,"ー","ー","ー"]
["GWPN2O","N2O の地球温暖化係数",null,"tCO2/tN2O","ー","ー"]
["FracGasm1,n","排せつ管理区分 n の畜舎における排せつ物から NH3 や NOx として揮発する割合",null,"(tNH3-N+NOx-N)/tN","ー","ー"]
["FracGasm2,n","排せつ管理区分 n の処理時に排せつ物から NH3 や NOx として揮発する割合",null,"(tNH3-N+NOx-N)/tN","ー","ー"]
["EF","排出係数",null,"tN2O-N/(t-NH3-N+Nox-N)","ー","ー"]
["Nf","ふん中窒素量 ",null,"gN/頭/日","Nf = 4.97 × W1.21PJ,feed,dairy","ー"]
["Nu","尿中窒素量 ",null,"gN/頭/日","Nu = 0.24 × NI1.14, NI = WPJ,CP,beef/6.25","ー"]
["WPJ,CP,beef","プロジェクト実施後の慣用飼料の CP 値",null,"g/日","ー","ー"]
["WPJ,feed,beef","プロジェクト実施後の 1 日当たりのアミノ酸バランス改善飼料の\n平均重量（乾物摂取量）",null,"Kg/日","ー","ー"]
[]
[]
["４．ベースライン排出量の考え方"]
["記号","定義","数値","単位","計算式","備考"]
["NPJ,n,pig","プロジェクト実施後のアミノ酸バランス改善飼料を使用して飼養し\nた「肥育豚」の平均飼養頭数",null,"頭","NPJ,n,pig = NBL,n,pig","ー"]
["NBL,n,pig","ベースラインの慣用飼料を使用して飼養した「肥育豚」の平均飼養\n頭数",null,"頭","ー","ー"]
["NPJ,n,broiler","プロジェクト実施後のアミノ酸バランス改善飼料を使用して飼養し\nた「ブロイラー」の平均飼養羽数",null,"羽","NPJ,n,broiler = NBL,n,broiler","ー"]
["NBL,n,broiler","ベースラインの慣用飼料を使用して飼養した「ブロイラー」の平均\n飼養羽数",null,"羽","ー","ー"]
["NPJ,n,dairy","プロジェクト実施後のアミノ酸バランス改善飼料を使用して飼養し\nた「乳用牛」の平均飼養頭数",null,"頭","NPJ,n,dairy = NBL,n,dairy","ー"]
["NBL,n,dairy","ベースラインの慣用飼料を使用して飼養した「乳用牛」の平均飼養\n頭数",null,"頭","ー","ー"]
["NPJ,n,beef","プロジェクト実施後のアミノ酸バランス改善飼料を使用して飼養し\nた「肉用牛」の平均飼養頭数",null,"頭","NPJ,n,beef = NBL,n,beef","ー"]
["NBL,n,beef","ベースラインの慣用飼料を使用して飼養した「肉用牛」の平均飼養\n頭数",null,"頭","ー","ー"]
["DPJ,n,pig","プロジェクト実施後のアミノ酸バランス改善飼料を使用して「肥育\n豚」を飼養した日数",null,"日","DPJ,n,pig = DBL,n,pig","ー"]
["DBL,n,pig","ベースラインの慣用飼料を使用して「肥育豚」を飼養した日数",null,"日","ー","ー"]
["DPJ,n,broiler","プロジェクト実施後のアミノ酸バランス改善飼料を使用して「ブロ\nイラー」を飼養した日数",null,"日","DPJ,n,broiler = DBL,n,broiler","ー"]
["DBL,n,broiler","ベースラインの慣用飼料を使用して「ブロイラー」を飼養した日数",null,"日","ー","ー"]
["DPJ,n,dairy","プロジェクト実施後のアミノ酸バランス改善飼料を使用して「乳用\n牛」を飼養した日数",null,"日","DPJ,n,dairy = DBL,n,dairy","ー"]
["DBL,n,dairy","ベースラインの慣用飼料を使用して「乳用牛」を飼養した日数",null,"日","ー","ー"]
["DPJ,n,beef","プロジェクト実施後のアミノ酸バランス改善飼料を使用して「肉用\n牛」を飼養した日数",null,"日","DPJ,n,beef = DBL,n,beef","ー"]
["DBL,n,beef","ベースラインの慣用飼料を使用して「肉用牛」を飼養した日数",null,"日","ー","ー"]
[]
[]
["５．ベースライン排出量の算定"]
["1) 豚"]
["記号","定義","数値","単位","計算式","備考"]
["EMBL","ベースライン排出量",null,"tCO2e/年","EMBL =∑{(EFN2O,n +EFN2o,i,n)× MABL,pig × NBL,n,pig × DBL,n,pig )}×44/28 ×GWPN2O","ー"]
["n","排せつ物の管理区分",null,"ー","ー","ー"]
["EFN2O,n","排せつ管理区分 n の N2O 排出係数",null,"tN2O-N/tN","ー","ー"]
["EFN2O,i,n","排せつ管理区分 n の間接 N2O 排出係数",null,"tN2O-N/tN","EFN2O,i,n=(FracGasm1,n+FracGasm2,n-FracGasm1,n×FracGasm2,n)×EF","ー"]
["MABL,pig","ベースラインの慣用飼料を使用して飼養した場合の「肥育豚」1 頭、\n1 日当たりの排せつ物に含まれる窒素含有量",null,"tN/頭/日","ー","ー"]
["NBL,n,pig","ベースラインの慣用飼料を使用して飼養した「肥育豚」の平均飼養\n頭数",null,"頭","ー","ー"]
["DBL,n,pig","ベースラインの慣用飼料を使用して「肥育豚」を飼養した日数",null,"日","ー","ー"]
["44/28","N2O 中に含まれる窒素重量（tN2O-N）を N2O 重量（tN2O）に変\n換するための係数",null,"ー","ー","ー"]
["GWPN2O","N2O の地球温暖化係数",null,"tCO2/tN2O","ー","ー"]
["FracGasm1,n","排せつ管理区分 n の畜舎における排せつ物から NH3 や NOx として揮発する割合",null,"(tNH3-N+NOx-N)/tN","ー","ー"]
["FracGasm2,n","排せつ管理区分 n の処理時に排せつ物から NH3 や NOx として揮発する割合",null,"(tNH3-N+NOx-N)/tN","ー","ー"]
["EF","排出係数",null,"tN2O-N/(t-NH3-N+Nox-N)","ー","ー"]
[]
["2) ブロイラー"]
["記号","定義","数値","単位","計算式","備考"]
["EMBL","ベースライン排出量",null,"tCO2e/年","EMBL =∑{(EFN2O,n +EFN2o,i,n)× MABL,broiler × NBL,n,broiler × DBL,n,broiler )}×44/28 ×GWPN2O","ー"]
["n","排せつ物の管理区分",null,"ー","ー","ー"]
["EFN2O,n","排せつ管理区分 n の N2O 排出係数",null,"tN2O-N/tN","ー","ー"]
["EFN2O,i,n","排せつ管理区分 n の間接 N2O 排出係数",null,"tN2O-N/tN","EFN2O,i,n=(FracGasm1,n+FracGasm2,n-FracGasm1,n×FracGasm2,n)×EF","ー"]
["MABL,broiler","ベースラインの慣用飼料を使用して飼養した場合の「ブロイラー」1\n羽、1 日当たりの排せつ物に含まれる窒素含有量",null,"tN/頭/日","ー","ー"]
["NBL,n,broiler","ベースラインの慣用飼料を使用して飼養した「ブロイラー」の平均\n飼養羽数",null,"羽","ー","ー"]
["DBL,n,broiler","ベースラインの慣用飼料を使用して「ブロイラー」を飼養した日数",null,"日","ー","ー"]
["44/28","N2O 中に含まれる窒素重量（tN2O-N）を N2O 重量（tN2O）に変\n換するための係数",null,"ー","ー","ー"]
["GWPN2O","N2O の地球温暖化係数",null,"tCO2/tN2O","ー","ー"]
["FracGasm1,n","排せつ管理区分 n の畜舎における排せつ物から NH3 や NOx として揮発する割合",null,"(tNH3-N+NOx-N)/tN","ー","ー"]
["FracGasm2,n","排せつ管理区分 n の処理時に排せつ物から NH3 や NOx として揮発する割合",null,"(tNH3-N+NOx-N)/tN","ー","ー"]
["EF","排出係数",null,"tN2O-N/(t-NH3-N+Nox-N)","ー","ー"]
[]
["3-1）乳用牛"]
["記号","定義","数値","単位","計算式","備考"]
["EMBL","ベースライン排出量",null,"tCO2e/年","EMBL =∑{(EFN2O,n +EFN2o,i,n)× MABL,dairy × NBL,n,dairy × DBL,n,dairy )}×44/28 ×GWPN2O","計算式は乳用牛"]
["n","排せつ物の管理区分",null,"ー","ー","ー"]
["EFN2O,n","排せつ管理区分 n の N2O 排出係数",null,"tN2O-N/tN","ー","ー"]
["EFN2O,i,n","排せつ管理区分 n の間接 N2O 排出係数",null,"tN2O-N/tN","EFN2O,i,n=(FracGasm1,n+FracGasm2,n-FracGasm1,n×FracGasm2,n)×EF","ー"]
["MABL,dairy","ベースラインの慣用飼料を使用して飼養した場合の「乳用牛」1 頭、1 日当たりの排せつ物に含まれる窒素含有量",null,"tN/頭/日","MABL,dairy = (Nf + Nu)/1,000,000","計算式は乳用牛"]
["NBL,n,dairy","ベースラインの慣用飼料を使用して飼養した「乳用牛」の平均飼養\n頭数",null,"頭","ー","ー"]
["DBL,n,dairy","ベースラインの慣用飼料を使用して「乳用牛」を飼養した日数",null,"日","ー","ー"]
["44/28","N2O 中に含まれる窒素重量（tN2O-N）を N2O 重量（tN2O）に変\n換するための係数",null,"ー","ー","ー"]
["GWPN2O","N2O の地球温暖化係数",null,"tCO2/tN2O","ー","ー"]
["FracGasm1,n","排せつ管理区分 n の畜舎における排せつ物から NH3 や NOx として揮発する割合",null,"(tNH3-N+NOx-N)/tN","ー","ー"]
["FracGasm2,n","排せつ管理区分 n の処理時に排せつ物から NH3 や NOx として揮発する割合",null,"(tNH3-N+NOx-N)/tN","ー","ー"]
["EF","排出係数",null,"tN2O-N/(t-NH3-N+Nox-N)","ー","ー"]
["Nf","ふん中窒素量",null,"gN/頭/日","Nf = 5.01 × W1.2before,feed,dairy","計算式は搾乳牛"]
[null,null,null,null,"Nf = 4.97 × W1.2before,feed,dairy","計算式は・乾乳牛・育乳牛"]
["Nu","尿中窒素量",null,"gN/頭/日","Nu = 16.57 × (Wbefore,CP,dairy/1000/Wbefore,feed,dairy) × 100 ー 138.6","計算式は搾乳牛"]
[null,null,null,null,"Nu = 0.24 × (Wbefore,CP,dairy/6.25) 1.14","計算式は・乾乳牛・育乳牛"]
["Wbefore,CP,dairy","ベースラインの慣用飼料の CP 値",null,"g/日","ー","ー"]
["Wbefore,feed,dairy","プロジェクト実施前の 1 日当たりの慣用飼料の平均重量（乾物摂\n取量）",null,"Kg/日","ー","ー"]
[]
["3-2）肉用牛"]
["記号","定義","数値","単位","計算式","備考"]
["EMBL","ベースライン排出量",null,"tCO2e/年","EMBL =∑(EFN2O,n × MABL,beef × NBL,n,beef × DBL,n,beef )×44/28 ×GWPN2O","ー"]
["n","排せつ物の管理区分",null,"ー","ー","ー"]
["EFN2O,n","排せつ管理区分 n の N2O 排出係数",null,"tN2O-N/tN","ー","ー"]
["EFN2O,i,n","排せつ管理区分 n の間接 N2O 排出係数",null,"tN2O-N/tN","EFN2O,i,n=(FracGasm1,n+FracGasm2,n-FracGasm1,n×FracGasm2,n)×EF","ー"]
["MABL,beef","ベースラインの慣用飼料を使用して飼養した場合の「肉用牛」1 頭、\n1 日当たりの排せつ物に含まれる窒素含有量",null,"tN/頭/日","MABL,beef = (Nf + Nu)/1,000,000","ー"]
["NBL,n,beef","ベースラインの慣用飼料を使用して飼養した「肉用牛」の平均飼養\n頭数",null,"頭","ー","ー"]
["DBL,n,beef","ベースラインの慣用飼料を使用して「肉用牛」を飼養した日数",null,"日","ー","ー"]
["44/28","N2O 中に含まれる窒素重量（tN2O-N）を N2O 重量（tN2O）に変\n換するための係数",null,"ー","ー","ー"]
["GWPN2O","N2O の地球温暖化係数",null,"tCO2/tN2O","ー","ー"]
["FracGasm1,n","排せつ管理区分 n の畜舎における排せつ物から NH3 や NOx として揮発する割合",null,"(tNH3-N+NOx-N)/tN","ー","ー"]
["FracGasm2,n","排せつ管理区分 n の処理時に排せつ物から NH3 や NOx として揮発する割合",null,"(tNH3-N+NOx-N)/tN","ー","ー"]
["EF","排出係数",null,"tN2O-N/(t-NH3-N+Nox-N)","ー","ー"]
["Nf","ふん中窒素量",null,"tN/頭/日","Nf = 4.97 × W1.21before,feed,beef","ー"]
["Nu","尿中窒素量",null,"tN/頭/日","Nu = 0.24 × NI1.14, NI = WPJ,CP,beef/6.25","ー"]
["Wbefore,CP,beef","ベースラインの慣用飼料の CP 値",null,"g","ー","ー"]
["Wbefore,feed,beef","プロジェクト実施前の 1 日当たりの慣用飼料の平均重量（乾物摂取量）",null,"Kg/日","ー","ー"]

{"sheet":"AG-001 （モニタリング）","index":13,"n_rows":35,"n_cols":5,"rows_kept":35,"cut":false,"hidden":true,"merged":[[3,0,3,1],[19,0,19,1]]}
[]
["６．モニタリング方法"]
["1) 活動量のモニタリング"]
["モニタリング項目",null,"モニタリング方法例","モニタリング頻度"]
["NPJ,n,pig","プロジェクト実施後のアミノ酸バランス改善飼料を使用して飼養した「肥育豚」の平均飼養頭数（頭）","・出荷記録、生産記録で計測","対象期間で累計"]
["DPJ,n,pig","プロジェクト実施後のアミノ酸バランス改善飼料を使用して「肥育豚を飼養した日数（日）","・生産記録、日報で計測","出荷単位ごと"]
["NPJ,n,broiler","プロジェクト実施後のアミノ酸バランス改善飼料を使用して飼養した「ブロイラー」の平均飼養羽数（羽）","・出荷記録、生産記録で計測","対象期間で累計"]
["DPJ,n,broiler","プロジェクト実施後のアミノ酸バランス改善飼料を使用して「ブロイラー」を飼養した日数（日）","・生産記録、日報で計測","出荷単位ごと"]
["WPJ,feed","プロジェクト実施後の 1 日当たりのアミノ酸バランス改善飼料の平均重量（乾物摂取量）","・生産記録、カタログ、パッケージ、納品書で計測","【要求頻度】\n1 年間に 1 回以上"]
["Wbefore,feed","プロジェクト実施前の 1 日当たりの慣用飼料の平均重量（乾物摂取量）","・生産記録、カタログ、パッケージ、納品書で計測","【要求頻度】\n原則、プロジェクト開始直近の 1 年間以上の実績を累計"]
["n","排せつ物の管理区分","・日本国温室効果ガスインベントリ報告書記載の区分を利用","【要求頻度】\n検証申請時に最新のものを使用","※1"]
["NPJ,n,dair","プロジェクト実施後のアミノ酸バランス改善飼料を使用して飼養した「乳用牛」の平均飼養頭数（頭）","・出荷記録、生産記録で計測","対象期間で累計"]
["DPJ,n,dairy","プロジェクト実施後のアミノ酸バランス改善飼料を使用して「乳用牛」を飼養した日数（日）","・生産記録、日報で計測","出荷単位ごと"]
["NPJ,n,beef","プロジェクト実施後のアミノ酸バランス改善飼料を使用して飼養した「肉用牛」の平均飼養頭数（頭）","・出荷記録、生産記録で計測","対象期間で累計"]
["DPJ,n,beef","プロジェクト実施後のアミノ酸バランス改善飼料を使用して「肉用牛」を飼養した日数（日）","・生産記録、日報で計測","出荷単位ごと"]
["CRPJ,cp","アミノ酸バランス改善飼料の CP 含有率（％）","・飼料供給会社の提供情報、飼料設計情報","【要求頻度】\n１年間に１回以上。ただし、飼料変更があった場合には都度計測","※5"]
["CRbefore,cp","プロジェクト実施前の慣用飼料の CP 含有率（％）","飼料供給会社の提供情報、飼料設計情報（プロジェクト実施直前の実績値）","プロジェクト実施直前の実績値","※5"]
[]
["2) 係数のモニタリング"]
["モニタリング項目",null,"モニタリング方法例","モニタリング頻度"]
["EFN2O,n","排せつ管理区分 n の N2O 排出係数（tN2O-N/tN）","・日本国温室効果ガスインベントリ報告書記載のデフォルト値を利用","【要求頻度】\n検証申請時に最新のものを使用","※2"]
["FracGasm1,n","排せつ管理区分 n の畜舎における排せつ物から NH3 や NOx として揮発する割合\n((tNH3-N+NOx-N)/tN)","・日本国温室効果ガスインベントリ報告書記載のデフォルト値を利用","【要求頻度】\n検証申請時に最新のものを使用","※3"]
["FracGasm2,n","排せつ管理区分 n の処理時に排せつ物から NH3 や NOx として揮発する割合((tNH3-N+NOx-N)/tN)","・日本国温室効果ガスインベントリ報告書記載のデフォルト値を利用","【要求頻度】\n検証申請時に最新のものを使用","※3"]
["MABL,pig","ベースラインの慣用飼料を使用して飼養した場合の「肥育豚」1 頭、1 日当たりの排せつ物に含まれる窒素含有量（tN/頭/日）","・日本国温室効果ガスインベントリ報告書記載のデフォルト値を利用","【要求頻度】\n検証申請時に最新のものを使用","※4"]
["MABL,broiler","ベースラインの慣用飼料を使用して飼養した場合の「ブロイラー」1 羽、1 日当たりの排せつ物に含まれる窒素含有量（tN/羽/日）","・日本国温室効果ガスインベントリ報告書記載のデフォルト値を利用","【要求頻度】\n検証申請時に最新のものを使用","※4"]
["EF","大気沈降によるN2O排出の排出係数\n(tN2O-N/(t-NH3-N+Nox-N))","・日本国温室効果ガスインベントリ報告書記載のデフォルト値を利用","【要求頻度】\n検証申請時に最新のものを使用","※6"]
["GWPN2O","N2O の地球温暖化係数（tCO2/tN2O）","・デフォルト値を利用 ","【要求頻度】\n検証申請時に最新のものを使用"]
[]
["＜注釈＞"]
["※1","別表【排せつ管理区分の概要】"]
["※2","別表【排泄管理区分 n の乳用牛・肉用牛・豚・ブロイラーの排せつ物管理（n）に伴う N2O 排出係数（g\u0002N2O-N/gN）】"]
["※3","別表【排せつ管理区分 n の畜舎における排せつ物から NH3 や NOx として揮発する割合と処理時に排 せつ物から NH3 や NOx として揮発する割合((tNH3-N+NOx-N)/tN)】"]
["※4","豚は 34.2×10-6、ブロイラーは2.62×10-6 と設定。"]
["※5","CP 値の情報を生産記録、日報、飼料設計情報等で直接モニタリングしている場合は、その値をWbeforeCP,WPJCPとして用いることもできる。"]
["※6","0.014と設定。"]

{"sheet":"方法論・認証実績一覧表","index":14,"n_rows":22,"n_cols":15,"rows_kept":22,"cut":false,"hidden":true,"merged":[[16,6,20,6],[16,0,20,0],[16,1,20,1],[16,2,20,2],[16,3,20,3],[16,4,20,4],[16,5,20,5],[3,6,4,6],[3,7,3,10],[3,11,3,14],[10,0,15,0],[10,1,15,1],[10,2,15,2],[10,3,15,3],[10,4,15,4],[10,5,15,5],[10,6,15,6],[3,0,4,0],[3,1,4,1],[3,2,4,2],[3,3,4,3],[3,4,4,4],[3,5,4,5]]}
[]
["J-クレジットの農業分野の方法論及び認証実績一覧表"]
[]
["方法論No.","方法論","削減方法","適用条件","ベースライン排出量の考え方","主なモニタリング項目","適用条件","J-クレジット認証実績（通常型）",null,null,null,"J-クレジット認証実績（プログラム型）"]
[null,null,null,null,null,null,null,"認証申請日","プロジェクト実施者","プロジェクト概要","認証量","認証申請日","運営・管理者","プロジェクト概要","認証量"]
["AG-001","牛・豚・ブロイラーへのアミノ酸バランス改善飼料の給餌","慣用飼料に代えてアミノ酸バランス改善飼料を給餌することにより、排せつ物管理からのN2O排出量を抑制する。","① プロジェクト実施前において、慣用飼料給餌量が、牛・豚は「日本飼養標準」の1.2倍、ブロイラーは品種ごとに定められた「栄養推奨値」の1.1倍を上回らないこと。\n② プロジェクト実施後において、慣用飼料のCP含有率（％）から1～3％引き下げたCP含有率のアミノ酸バランス改善飼料を給餌し、牛・豚はその給餌量が「日本飼養標準」の1.2倍、ブロイラーは品種毎に定められた「栄養推奨値」の1.1倍を上回らないこと。\n③ 排せつ物の処理方法は「貯留、天日乾燥、火力乾燥、炭化処理、強制発酵、堆積発酵、焼却、浄化、メタン発酵、産業廃棄物処理、放牧又はその他」のいずれかであること。\n④ アミノ酸バランス改善飼料を給餌する家畜は乳用牛・肉用牛・肥育豚・ブロイラーであること。\n⑤ ブロイラーへの給餌について、プロジェクト実施後の1日１羽あたりのCPの給餌量が、プロジェクト前より増加しないこと。"," 乳用牛・肉用牛・肥育豚・ブロイラーをアミノ酸バランス改善飼料ではなく、慣用飼料で使用した場合に想定される温室効果ガス排出量","• 排せつ物の管理区分\n• 乳用牛・肉用牛・肥育豚の平均飼養頭数及び飼養日数、ブロイラーの平均飼養羽数及び飼養日数\n• 慣用飼料及びアミノ酸バランス改善飼料のCP含有率（％）、乾物摂取量、\n• ブロイラーへのプロジェクト実施前後の１日１羽当たりの給餌量（重量）","本方法論は、次の条件の全てを満たす場合に適用することができる。\n• 条件 1：プロジェクト実施前には慣用飼料を給餌しており、その給餌量が牛は「日本飼養標準」に基づく慣行レベル（標準 CP 値）に安全率 20％を見込んだ水準（標準 CP 値の 1.2 倍）を、豚は「日本飼養標準」に基づく慣行レベル（標準 CP 値）に安全率 20%を見込んだ水準（標準CP 値の 1.2 倍）を、ブロイラーはブロイラー品種ごとに定められた栄養推奨値の CP 値に安全率 10%を見込んだ水準（栄養推奨値の CP 値の 1.1 倍）を上回らないこと。\n• 条件 2：プロジェクト実施後には慣用飼料の CP 含有率（%）から 1～3%引き下げた CP 含有率のアミノ酸バランス改善飼料を給餌しており、その給餌量が牛は「日本飼養標準」に基づく慣行レベル（標準 CP 値）に安全率 20％を見込んだ水準（標準 CP 値の 1.2 倍）を、豚は「日本飼養標準」に基づく慣行レベル（標準 CP 値）に安全率 20%を見込んだ水準（標準 CP 値の 1.2 倍）を、ブロイラーはブロイラー品種ごとに定められた栄養推奨値の CP 値に安全率 10%を見込んだ水準（栄養推奨値の CP 値の 1.1 倍）を上回らないこと。\n• 条件 3：プロジェクト実施前後の排せつ物処理方法は温室効果ガスインベントリ報告書で記された「貯留、天日乾燥、火力乾燥、炭化処理、強制発酵、堆積発酵、焼却、浄化、メタン発酵、産業廃棄物処理、放牧又はその他」のいずれかであること。\n• 条件 4：アミノ酸バランス改善飼料を給餌する家畜は、乳用牛・肉用牛・肥育豚・ブロイラーであること。\n• 条件 5：ブロイラーへの給餌について、プロジェクト実施後の 1 日 1 羽当たりの CP の給餌量\n（重量）は、プロジェクト実施前より増加しないこと。","―","―","―","―","―","―","―","―"]
["AG-002","家畜排せつ物管理方法の変更","家畜の飼養における排せつ物の管理方法を変更することによりCH4及びN2O排出量を抑制する。","① 温室効果ガスの排出が少ない排せつ物管理方法へと変更すること及びプロジェクト実施前後の排せつ物管理方法が日本国温室効果ガスインベントリ報告書で規定される管理区分に該当すること。\n② プロジェクト実施前後で、家畜種を変更しないこと。\n③ 家畜は、日本国温室効果ガスインベントリ報告書で規定される牛（乳用牛又は肉用牛）、豚又は鶏（採卵鶏又はブロイラー）であること。","プロジェクト実施後の家畜排せつ物をプロジェクト実施前の管理方法で処理する場合に想定される温室効果ガス排出量。","・ プロジェクト実施前後の排せつ物管理区分\n・プロジェクト実施後の排せつ物管理区分ごとの家畜種ごとの飼養頭数及び飼養日数\n・ 排せつ物管理における燃料使用量及び電力使用量","本方法論は、次の条件の全てを満たす場合に適用することができる。\n• 条件 1：プロジェクト実施前の家畜排せつ物管理方法から、GHG 排出量が少ない家畜排せつ物管理方法へと変更すること。また、プロジェクト実施前後で、家畜排せつ物の管理方法が日本国温室効果ガスインベントリ報告書で規定される管理区分に該当すること。\n• 条件 2：プロジェクト実施前後で、家畜種を変更しないこと。\n• 条件 3：家畜は、日本国温室効果ガスインベントリ報告書で規定される牛（乳用牛又は肉用牛）、豚又は鶏（採卵鶏又はブロイラー）であること。","―","―","―","―","―","―","―","―"]
["AG-003","茶園土壌への硝化抑制剤入り化学肥料又は石灰窒素を含む複合肥料の施肥","茶の栽培において、茶園に硝化抑制剤入りの化学肥料又は石灰窒素を含む複合肥料を施肥し、プ ロジェクト実施前の肥料施肥量を減らすことで、土壌からのN2O排出量を削減する。","① プロジェクト実施前に施肥していた石灰窒素以外の窒素含有化学肥料又は有機肥料をジシアンジアミドが混合された化学肥料又は石灰窒素を含む複合肥料に代替すること。\n② 硝化抑制剤入り化学肥料又は石灰窒素を含む複合肥料を施肥する土壌で栽培する作物は茶であること。\n③ プロジェクト実施前後で、肥料の施肥方法、落葉・剪定枝の管理方法について変更がないこと。\n④ プロジェクト実施前に平均施肥量について1年間以上のデータがあること","茶園において、硝化抑制剤入り化学肥料又は石灰窒素を含む複合肥料ではない、窒素含有化学肥料又は有機肥料を施肥する場合に想定される温室効果ガス排出量。","・プロジェクト実施後に硝化抑制剤入り化学肥料又は石灰窒素を含む複合肥料を施肥する面積及び平均施肥量\n・プロジェクトで施肥した硝化抑制剤入り化学肥料中又は石灰窒素を含む複合肥料中の窒素量及びジシアンジアミド含有量\n・プロジェクト実施前に化学肥料を施肥していた面積及び平均施肥量","本方法論は、次の条件の全てを満たす場合に適用することができる。\n・条件 1：プロジェクト実施前に使用している石灰窒素以外の窒素含有化学肥料又は有機肥料を、プロジェクト実施後は硝化抑制剤であるジシアンジアミドが混合された化学肥料又は石灰窒素を含む複合肥料※に代替すること。\n・条件 2：硝化抑制剤入り化学肥料又は石灰窒素を含む複合肥料を施肥する土壌で栽培する作物は、茶であること。\n・条件 3：プロジェクト実施前後で、肥料の施肥方法、茶樹の落葉の管理方法、剪定枝の管理方法のいずれについても変更がないこと。\n・条件 4：窒素含有化学肥料又は有機肥料の平均施肥量について、プロジェクト実施前 1 年間以上のデータがあること。","―","―","―","―","―","―","―","―"]
["AG-004","バイオ炭の農地施用","ー","① バイオ炭を、農地法第2条に定める「農地」又は「採草放牧地」における鉱質の土壌に施用すること。\n② 施用するバイオ炭は、炭素含有率及び100年後の炭素残存率のデフォルト値が適用できる種類であること、又はそのようなデフォルト値が適用できる原料及び製炭温度により製造されたものであることが、客観的に確認できること。\n③ バイオ炭の原料は国産であり、塗料、接着剤等が含まれていないこと。また、他に利用用途のないものであること（燃料用炭の副生物等も対象）。","ー","ー","本方法論は、次の条件の全てを満たす場合に適用することができる。\n・ 条件 1：バイオ炭を、農地法第 2 条に定める「農地」又は「採草放牧地」における鉱質の土壌に施用すること。\n・ 条件 2：施用するバイオ炭は、炭素含有率及び 100 年後の炭素残存率のデフォルト値が適用できる種類であること、又はそのようなデフォルト値が適用できる原料及び製炭温度により製造されたものであることが、客観的に確認できること。\n・ 条件 3：バイオ炭の原料として木材（竹も含む）を使用する場合、当該原料は国内産であること。\n・ 条件 4：バイオ炭の原料は、未利用の生物資源であること。また、農地施用を用途とするバイオ炭の製造を目的として主伐された木材でないこと。\n・ 条件 5：バイオ炭の原料には、異物、塗料、接着剤、防腐剤、薬剤、有害物が含まれてないこと。また、その入手・使用にあたって法令違反や不適切な手続がないこと。","―","―","―","―","2022-03-29","一般社団法人　日本クルベジ協会","農家におけるバイオ炭の農地利用",247]
["AG-005","水稲栽培における中干し期間の延長","ー","ー","ー","ー","本方法論は、次の条件を満たす場合に適用することができる。\n・ 条件：水稲栽培において、中干しの期間を、プロジェクト実施水田（以下、「当該水田」という。）におけるプロジェクト実施前の直近 2 か年以上の実施日数の平均より 7 日間以上延長すること。","―","―","―","―","―","―","―","―"]
["EN-S-002","ヒートポンプの導入","効率のよいヒートポンプを導入することにより、化石燃料の使用量を削減する。","① 更新前の熱源設備又は標準的な熱源設備よりも効率のよいヒートポンプを導入すること。\n② ヒートポンプで生産した温水、冷水又は蒸気の熱を全部又は一部を自家消費すること。","プロジェクト実施後のヒートポンプによる生成熱量を、ベースラインの熱源設備から得る場合に想定されるCO2排出量。","・ プロジェクト実施後のヒートポンプにおけるエネルギー使用量\n・プロジェクト実施後のヒートポンプの効率\n・ 更新前の熱源設備又は標準的な熱源設備の効率","本方法論は、次の条件の全てを満たす場合に適用することができる。\n• 条件 1：プロジェクト登録基準を満たすヒートポンプを導入すること。\n• 条件 2：ベースラインの設備を特定できること。\n• 条件 3：ヒートポンプで生産した温水、冷水又は蒸気の熱の全部又は一部を自家消費すること。","2017-02-27","社会福祉法人　敬長福祉会","特別養護老人ホームにおけるヒートポンプの導入",81,"2015-11-18","北海道東急ビルマネジメント株式会社","マンションにおけるヒートポンプの新設",71]
[null,null,null,null,null,null,null,"2016-11-24","株式会社 西村屋","ホテルにおける吸収式冷温水機の更新 (A重油→都市ガス)",127,"2016-11-24","北海道東急ビルマネジメント株式会社","マンションにおけるヒートポンプの新設",84]
[null,null,null,null,null,null,null,"2020-05-29","株式会社 西村屋","ホテルにおける吸収式冷温水機の更新 (A重油→都市ガス)",521,"2018-11-22","北海道東急ビルマネジメント株式会社","マンションにおけるヒートポンプの新設",190]
[null,null,null,null,null,null,null,"2022-03-30","留寿都村","公共施設におけるヒートポンプの新設 (電気)",72,"―","―","―","―"]
[null,null,null,null,null,null,null,"2020-02-10","国立大学法人岐阜大学","病院におけるヒートポンプの更新",2093,"―","―","―","―"]
[null,null,null,null,null,null,null,"2021-03-29","株式会社萬世閣","温泉施設におけるヒートポンプの導入",412,"―","―","―","―"]
["EN-S-004","空調設備の導入","効率のよい空調設備を導入することにより、電力等の使用量を削減する。","① 更新前の空調設備又は標準的な空調設備よりも、効率のよい空調設備を導入すること。\n② 空調設備で生産した暖気又は冷気の全部又は一部を自家消費すること。","プロジェクト実施後の空調設備による生成熱量を、ベースラインの空調設備から得る場合に想定されるCO2排出量。","・プロジェクト実施後の空調設備におけるエネルギー使用量\n・ プロジェクト実施後の空調設備のエネルギー消費効率\n・ 更新前の空調設備又は標準的な空調設備のエネルギー消費効率","本方法論は、次の条件の全てを満たす場合に適用することができる。\n• 条件 1：プロジェクト登録基準を満たす空調設備を導入すること。\n• 条件 2：ベースラインの設備を特定できること。\n• 条件 3：空調設備で生産した暖気又は冷気の全部又は一部を自家消費すること。","2016-03-01","株式会社グリーンヘリテージ","ゴルフ場における空調設備の更新",8,"2015-11-18","北海道東急ビルマネジメント株式会社","マンションにおける空調設備の新設",21]
[null,null,null,null,null,null,null,"2018-03-06","株式会社グリーンヘリテージ","ゴルフ場における空調設備の更新",8,"2018-11-22","北海道東急ビルマネジメント株式会社","マンションにおける空調設備の新設",220]
[null,null,null,null,null,null,null,"2017-02-27","社会福祉法人　敬長福祉会","特別養護老人ホームにおける空調設備の更新 (灯油、電力→電力)",17,"2015-11-17","環境経済株式会社","事業所における空調設備の更新 (電気→電気)",13]
[null,null,null,null,null,null,null,"2018-02-23","株式会社欽山","温泉施設における空調設備の更新 (灯油→都市ガス)",0,"―","―","―","―"]
[null,null,null,null,null,null,null,"2022-02-10","株式会社欽山","温泉施設における空調設備の更新 (灯油→都市ガス)",6,"―","―","―","―"]
["EN-R-001","バイオマス固形燃料（木質バイオマス）による化石燃料又は系統電力の代替","ボイラー等の熱源設備、自家発電機等の発電設備又はコージェネレーション等において木質バイオマスを原料とするバイオマス固形燃料（木質ペレット、木質チップ又は薪等）を使用し、それまで使用していた化石燃料又は系統電力を代替することにより、排出量を削減する。","① バイオマス固形燃料又は当該燃料で発電された電力が、化石燃料又は系統電力等を代替すること。\n② 原則として、バイオマス固形燃料を利用する対象設備で生産した熱及び電力の全部又は一部を自家消費すること（クレジットの認証対象は原則として自家消費分に限る）。\n③ バイオマス固形燃料の原料は、未利用の木質バイオマスであること。\n④ 家庭用暖房機器での使用に限り、使用される木質バイオマスは建築廃材ではないこと。\n⑤ 設備の導入を伴う場合は、当該対象設備に対応する方法論に定める適用条件を満たすこと。","プロジェクト実施後に対象設備で使用される熱量を、従来の化石燃料から得る場合に想定されるCO2排出量","・ プロジェクト実施後におけるバイオマス固形燃料の使用量、当該燃料の供給過程（運搬、燃料化処理等）で使用される燃料・電力使用量、各種係数（単位発熱量、CO2排出係数等）\n・設備の導入を伴う場合、ベースライン設備及びプロジェクト設備のエネルギー消費効率","本方法論は、次の条件の全てを満たす場合に適用することができる。\n• 条件 1：バイオマス固形燃料が対象設備で使用される化石燃料若しくは系統電力を代替すること又はバイオマス固形燃料で発電された電力が系統電力等を代替すること。\n• 条件 2：原則として、バイオマス固形燃料を利用する対象設備で生産した熱及び電力の全部又は一部を、自家消費すること。\n• 条件 3：バイオマス固形燃料の原料は、未利用の木質バイオマスであること。また、建築廃材以外の木質バイオマスについては、伐採に当たって法令に従い適切に手続が行われた木材に由来するものであること。輸入された木質バイオマスについては、その流通・加工を行う取扱者から、持続可能性（合法性）が証明された木材・木材製品を用いることを証明する書類の交付を受けること。\n• 条件 4：ペレットストーブ等の家庭用暖房に限り、使用される木質バイオマスは、建築廃材ではないこと。\n• 条件 5：化石燃料からバイオマス固形燃料への代替だけでなく、設備の導入を伴う場合は、当該対象設備に対応する方法論に定める適用条件を満たすこと。ただし、プロジェクト実施前後での対象設備の効率向上に関する条件は除く。","96件",null,null,null,"14件"]